Workbook

Sheet MENU
A6: C1
A7: =LEFT(C7,4) -> 
A10: C5. | C10: C5. ELECTORES POR PAÍS DE ORIGEN
C25: Observaciones al
C26: correo electrónico: dejecutiva@tse.go.cr
A27: =LEFT(C27,4) -> 

Sheet 1
A1: CUADRO 1
A2: COSTA RICA: TOTAL Y VARIACIÓN DEL ELECTORADO
A3: ENTRE FEBRERO 2014 Y DICIEMBRE 2016
A4: SEGÚN PROVINCIA Y SEXO
A6: Provincia y sexo | B6: Padrón Nacional Electoral | E6: Variación
B7: Febrero 2014 | C7: Diciembre 2016 | E7: Absoluto | F7: Porcentaje
A9: Costa Rica | B9: =B13+B17+B21+B25+B29+B33+B37+B41 -> 3078321 | C9: =C13+C17+C21+C25+C29+C33+C37+C41 -> 3256590 | E9: =C9-B9 -> 178269 | F9: =E9/B9*100 -> 5.791111453
A10: Hombres | B10: 1535869 | C10: 1624019 | E10: =C10-B10 -> 88150 | F10: =E10/B10*100 -> 5.739421787
A11: Mujeres | B11: 1542452 | C11: 1632571 | E11: =C11-B11 -> 90119 | F11: =E11/B11*100 -> 5.842580515
A13: San José | B13: =SUM(B14:B15) -> 1063061 | C13: =+C14+C15 -> 1100177 | E13: =C13-B13 -> 37116 | F13: =E13/B13*100 -> 3.491427115
A14: Hombres | B14: 518312 | C14: 536449 | E14: =C14-B14 -> 18137 | F14: =E14/B14*100 -> 3.499243699
A15: Mujeres | B15: 544749 | C15: 563728 | E15: =C15-B15 -> 18979 | F15: =E15/B15*100 -> 3.483989874
A17: Alajuela | B17: =+B18+B19 -> 577493 | C17: =+C18+C19 -> 616023 | E17: =C17-B17 -> 38530 | F17: =E17/B17*100 -> 6.671942344
A18: Hombres | B18: 291277 | C18: 310665 | E18: =C18-B18 -> 19388 | F18: =E18/B18*100 -> 6.656206978
A19: Mujeres | B19: 286216 | C19: 305358 | E19: =C19-B19 -> 19142 | F19: =E19/B19*100 -> 6.687955949
A21: Cartago | B21: =+B22+B23 -> 359985 | C21: =+C22+C23 -> 380678 | E21: =C21-B21 -> 20693 | F21: =E21/B21*100 -> 5.748295068
A22: Hombres | B22: 179449 | C22: 189501 | E22: =C22-B22 -> 10052 | F22: =E22/B22*100 -> 5.601591539
A23: Mujeres | B23: 180536 | C23: 191177 | E23: =C23-B23 -> 10641 | F23: =E23/B23*100 -> 5.894115301
A25: Heredia | B25: =+B26+B27 -> 306901 | C25: =+C26+C27 -> 325572 | E25: =C25-B25 -> 18671 | F25: =E25/B25*100 -> 6.083720809
A26: Hombres | B26: 151098 | C26: 160232 | E26: =C26-B26 -> 9134 | F26: =E26/B26*100 -> 6.045083323
A27: Mujeres | B27: 155803 | C27: 165340 | E27: =C27-B27 -> 9537 | F27: =E27/B27*100 -> 6.121191505
A29: Guanacaste | B29: =+B30+B31 -> 221688 | C29: =+C30+C31 -> 235584 | E29: =C29-B29 -> 13896 | F29: =E29/B29*100 -> 6.268268918
A30: Hombres | B30: 112201 | C30: 119061 | E30: =C30-B30 -> 6860 | F30: =E30/B30*100 -> 6.114027504
A31: Mujeres | B31: 109487 | C31: 116523 | E31: =C31-B31 -> 7036 | F31: =E31/B31*100 -> 6.42633372
A33: Puntarenas | B33: =+B34+B35 -> 287254 | C33: =+C34+C35 -> 305149 | E33: =C33-B33 -> 17895 | F33: =E33/B33*100 -> 6.229678264
A34: Hombres | B34: 147881 | C34: 156556 | E34: =C34-B34 -> 8675 | F34: =E34/B34*100 -> 5.866203231
A35: Mujeres | B35: 139373 | C35: 148593 | E35: =C35-B35 -> 9220 | F35: =E35/B35*100 -> 6.615341565
A37: Limón | B37: =+B38+B39 -> 249285 | C37: =+C38+C39 -> 267170 | E37: =C37-B37 -> 17885 | F37: =E37/B37*100 -> 7.174519125
A38: Hombres | B38: 129143 | C38: 137908 | E38: =C38-B38 -> 8765 | F38: =E38/B38*100 -> 6.787050014
A39: Mujeres | B39: 120142 | C39: 129262 | E39: =C39-B39 -> 9120 | F39: =E39/B39*100 -> 7.591017296
A41: En el extranjero 1/ | B41: =+B42+B43 -> 12654 | C41: =+C42+C43 -> 26237 | E41: =C41-B41 -> 13583 | F41: =E41/B41*100 -> 107.3415521
A42: Hombres | B42: 6508 | C42: 13647 | E42: =C42-B42 -> 7139 | F42: =E42/B42*100 -> 109.6957591
A43: Mujeres | B43: 6146 | C43: 12590 | E43: =C43-B43 -> 6444 | F43: =E43/B43*100 -> 104.8486821
A46: 1/ Costarricenses inscritos(as) que pueden ejercer el voto en extranjero para designar los puestos de Presidencia y Vicepresidencias, así como en consultas populares de orden nacional, según el artículo 187 del Código Electoral.
A48: Fuente: Sección Padrón Electoral del Tribunal Supremo de Elecciones.

Sheet 2
A1: CUADRO 2
A2: COSTA RICA: ELECTORADO EN EL PADRÓN PARA LAS ELECCIONES DE
A3: FEBRERO 2014 Y EN EL PADRÓN AL 31 DE DICIEMBRE 2016
A4: POR SEXO, SEGÚN PROVINCIA Y CANTÓN
A6: Provincia y cantón | B6: Padrón Nacional Electoral
B7: Febrero 2014 | F7: Setiembre 2016
B8: Total | C8: Hombres | D8: Mujeres | F8: Total | G8: Hombres | H8: Mujeres
A9: Costa Rica | B9: =SUM(B10:B17) -> 3078321 | C9: =SUM(C10:C17) -> 1535869 | D9: =SUM(D10:D17) -> 1542452 | E9: =E18+E39+E55+E64+E75+E87+E99 -> 0 | F9: =F18+F39+F55+F64+F75+F87+F99+F106 -> 3256590 | G9: =G18+G39+G55+G64+G75+G87+G99+G106 -> 1624019 | H9: =H18+H39+H55+H64+H75+H87+H99+H106 -> 1632571
A10: San José | B10: =B18 -> 1063061 | C10: 518312 | D10: 544749 | E10: 0 | F10: 1100177 | G10: 536449 | H10: 563728
A11: Alajuela | B11: =B39 -> 577493 | C11: 291277 | D11: 286216 | E11: 0 | F11: 616023 | G11: 310665 | H11: 305358
A12: Cartago | B12: =B55 -> 359985 | C12: 179449 | D12: 180536 | E12: 0 | F12: 380678 | G12: 189501 | H12: 191177
A13: Heredia | B13: =B64 -> 306901 | C13: 151098 | D13: 155803 | E13: 0 | F13: 325572 | G13: 160232 | H13: 165340
A14: Guanacaste | B14: =B75 -> 221688 | C14: 112201 | D14: 109487 | E14: 0 | F14: 235584 | G14: 119061 | H14: 116523
A15: Puntarenas | B15: =B87 -> 287254 | C15: 147881 | D15: 139373 | E15: 0 | F15: 305149 | G15: 156556 | H15: 148593
A16: Limón | B16: =B99 -> 249285 | C16: 129143 | D16: 120142 | E16: 0 | F16: 267170 | G16: 137908 | H16: 129262
A17: En el extranjero 1/ | B17: =B106 -> 12654 | C17: =C106 -> 6508 | D17: =D106 -> 6146 | F17: =F106 -> 26237 | G17: =G106 -> 13647 | H17: =H106 -> 12590
A18: San José | B18: =SUM(C18:D18) -> 1063061 | C18: =SUM(C19:C38) -> 518312 | D18: =SUM(D19:D38) -> 544749 | F18: =SUM(F19:F38) -> 1100177 | G18: =SUM(G19:G38) -> 536449 | H18: =SUM(H19:H38) -> 563728
A19: San José | B19: =+C19+D19 -> 228847 | C19: 110114 | D19: 118733 | F19: =SUM(G19:H19) -> 232837 | G19: 112780 | H19: 120057
A20: Escazú | B20: 43354 | C20: 21195 | D20: 22159 | F20: 45915 | G20: 22455 | H20: 23460
A21: Desamparados | B21: 152242 | C21: 74550 | D21: 77692 | F21: 158437 | G21: 77662 | H21: 80775
A22: Puriscal | B22: 26459 | C22: 13322 | D22: 13137 | F22: 27957 | G22: 14053 | H22: 13904
A23: Tarrazú | B23: 11458 | C23: 5814 | D23: 5644 | F23: 12025 | G23: 6044 | H23: 5981
A24: Aserrí | B24: 40321 | C24: 20123 | D24: 20198 | F24: 42241 | G24: 21092 | H24: 21149
A25: Mora | B25: 19190 | C25: 9521 | D25: 9669 | F25: 20840 | G25: 10274 | H25: 10566
A26: Goicoechea | B26: 87701 | C26: 41925 | D26: 45776 | F26: 89062 | G26: 42682 | H26: 46380
A27: Santa Ana | B27: 31041 | C27: 15246 | D27: 15795 | F27: 33947 | G27: 16563 | H27: 17384
A28: Alajuelita | B28: 47597 | C28: 23554 | D28: 24043 | F28: 49732 | G28: 24618 | H28: 25114
A29: Vázquez de Coronado | B29: 49673 | C29: 24016 | D29: 25657 | F29: 52469 | G29: 25291 | H29: 27178
A30: Acosta | B30: 15551 | C30: 8044 | D30: 7507 | F30: 16245 | G30: 8335 | H30: 7910
A31: Tibás | B31: 55540 | C31: 26143 | D31: 29397 | F31: 55738 | G31: 26156 | H31: 29582
A32: Moravia | B32: 42357 | C32: 20301 | D32: 22056 | F32: 43741 | G32: 20945 | H32: 22796
A33: Montes de Oca | B33: 41489 | C33: 19500 | D33: 21989 | F33: 42028 | G33: 19762 | H33: 22266
A34: Turrubares | B34: 4375 | C34: 2280 | D34: 2095 | F34: 4507 | G34: 2329 | H34: 2178
A35: Dota | B35: 5193 | C35: 2610 | D35: 2583 | F35: 5456 | G35: 2739 | H35: 2717
A36: Curridabat | B36: 46270 | C36: 22273 | D36: 23997 | F36: 48101 | G36: 23082 | H36: 25019
A37: Pérez Zeledón | B37: 105670 | C37: 53322 | D37: 52348 | F37: 109784 | G37: 54956 | H37: 54828
A38: León Cortés Castro | B38: 8733 | C38: 4459 | D38: 4274 | F38: 9115 | G38: 4631 | H38: 4484
A39: Alajuela | B39: =SUM(B40:B54) -> 577493 | C39: =SUM(C40:C54) -> 291277 | D39: =SUM(D40:D54) -> 286216 | F39: 616023 | G39: =SUM(G40:G54) -> 310665 | H39: =SUM(H40:H54) -> 305358
A40: Alajuela | B40: =+C40+D40 -> 185688 | C40: 93494 | D40: 92194 | F40: 196740 | G40: 98998 | H40: 97742
A41: San Ramón | B41: 58067 | C41: 28929 | D41: 29138 | F41: 61995 | G41: 30939 | H41: 31056
A42: Grecia | B42: 55007 | C42: 27426 | D42: 27581 | F42: 57985 | G42: 28928 | H42: 29057
A43: San Mateo | B43: 4044 | C43: 2100 | D43: 1944 | F43: 4881 | G43: 2509 | H43: 2372
A44: Atenas | B44: 18923 | C44: 9486 | D44: 9437 | F44: 19568 | G44: 9843 | H44: 9725
A45: Naranjo | B45: 29894 | C45: 14815 | D45: 15079 | F45: 31179 | G45: 15488 | H45: 15691
A46: Palmares | B46: 27132 | C46: 13436 | D46: 13696 | F46: 28560 | G46: 14164 | H46: 14396
A47: Poás | B47: 19747 | C47: 9940 | D47: 9807 | F47: 21283 | G47: 10675 | H47: 10608
A48: Orotina | B48: 14116 | C48: 7035 | D48: 7081 | F48: 15172 | G48: 7637 | H48: 7535
A49: San Carlos | B49: 97702 | C49: 49938 | D49: 47764 | F49: 105429 | G49: 53734 | H49: 51695
A50: Zarcero | B50: 8490 | C50: 4259 | D50: 4231 | F50: 8890 | G50: 4398 | H50: 4492
A51: Valverde Vega | B51: 13710 | C51: 6818 | D51: 6892 | F51: 14394 | G51: 7168 | H51: 7226
A52: Upala | B52: 24597 | C52: 12821 | D52: 11776 | F52: 27483 | G52: 14293 | H52: 13190
A53: Los Chiles | B53: 10457 | C53: 5621 | D53: 4836 | F53: 11744 | G53: 6326 | H53: 5418
A54: Guatuso | B54: 9919 | C54: 5159 | D54: 4760 | F54: 10720 | G54: 5565 | H54: 5155
A55: Cartago | B55: =SUM(B56:B63) -> 359985 | C55: =SUM(C56:C63) -> 179449 | D55: =SUM(D56:D63) -> 180536 | F55: 380678 | G55: =SUM(G56:G63) -> 189501 | H55: =SUM(H56:H63) -> 191177
A56: Cartago | B56: =+C56+D56 -> 113463 | C56: 56296 | D56: 57167 | F56: 119303 | G56: 58929 | H56: 60374
A57: Paraíso | B57: 43000 | C57: 21389 | D57: 21611 | F57: 45786 | G57: 22775 | H57: 23011
A58: La Unión | B58: 64441 | C58: 31956 | D58: 32485 | F58: 68972 | G58: 34108 | H58: 34864
A59: Jiménez | B59: 11308 | C59: 5836 | D59: 5472 | F59: 11859 | G59: 6089 | H59: 5770
A60: Turrialba | B60: 54654 | C60: 27475 | D60: 27179 | F60: 56373 | G60: 28206 | H60: 28167
A61: Alvarado | B61: 9484 | C61: 4788 | D61: 4696 | F61: 10286 | G61: 5148 | H61: 5138
A62: Oreamuno | B62: 33361 | C62: 16365 | D62: 16996 | F62: 35564 | G62: 17465 | H62: 18099
A63: El Guarco | B63: 30274 | C63: 15344 | D63: 14930 | F63: 32535 | G63: 16781 | H63: 15754
A64: Heredia | B64: =SUM(B65:B74) -> 306901 | C64: =SUM(C65:C74) -> 151098 | D64: =SUM(D65:D74) -> 155803 | F64: =SUM(G64:H64) -> 325572 | G64: =SUM(G65:G74) -> 160232 | H64: =SUM(H65:H74) -> 165340
A65: Heredia | B65: =+C65+D65 -> 90600 | C65: 43399 | D65: 47201 | F65: 94793 | G65: 45485 | H65: 49308
A66: Barva | B66: 30088 | C66: 14747 | D66: 15341 | F66: 32059 | G66: 15725 | H66: 16334
A67: Santo Domingo | B67: 32559 | C67: 16038 | D67: 16521 | F67: 33861 | G67: 16684 | H67: 17177
A68: Santa Bárbara | B68: 24726 | C68: 12278 | D68: 12448 | F68: 26173 | G68: 12978 | H68: 13195
A69: San Rafael | B69: 32186 | C69: 15986 | D69: 16200 | F69: 34306 | G69: 17075 | H69: 17231
A70: San Isidro | B70: 14503 | C70: 7235 | D70: 7268 | F70: 15624 | G70: 7826 | H70: 7798
A71: Belén | B71: 17266 | C71: 8510 | D71: 8756 | F71: 18280 | G71: 9006 | H71: 9274
A72: Flores | B72: 15087 | C72: 7390 | D72: 7697 | F72: 16276 | G72: 7922 | H72: 8354
A73: San Pablo | B73: 20119 | C73: 9754 | D73: 10365 | F73: 21535 | G73: 10400 | H73: 11135
A74: Sarapiquí | B74: 29767 | C74: 15761 | D74: 14006 | F74: 32665 | G74: 17131 | H74: 15534
A75: Guanacaste | B75: =SUM(B76:B86) -> 221688 | C75: =SUM(C76:C86) -> 112201 | D75: =SUM(D76:D86) -> 109487 | F75: 235584 | G75: =SUM(G76:G86) -> 119061 | H75: =SUM(H76:H86) -> 116523
A76: Liberia | B76: =+C76+D76 -> 41245 | C76: 20723 | D76: 20522 | F76: 43845 | G76: 21993 | H76: 21852
A77: Nicoya | B77: 38300 | C77: 19245 | D77: 19055 | F77: 40164 | G77: 20194 | H77: 19970
A78: Santa Cruz | B78: 37832 | C78: 19323 | D78: 18509 | F78: 40240 | G78: 20479 | H78: 19761
A79: Bagaces | B79: 12446 | C79: 6320 | D79: 6126 | F79: 13405 | G79: 6782 | H79: 6623
A80: Carrillo | B80: 22180 | C80: 11268 | D80: 10912 | F80: 23727 | G80: 12030 | H80: 11697
A81: Cañas | B81: 18440 | C81: 9272 | D81: 9168 | F81: 19280 | G81: 9651 | H81: 9629
A82: Abangares | B82: 12801 | C82: 6492 | D82: 6309 | F82: 13439 | G82: 6841 | H82: 6598
A83: Tilarán | B83: 14132 | C83: 7079 | D83: 7053 | F83: 14780 | G83: 7426 | H83: 7354
A84: Nandayure | B84: 7979 | C84: 4134 | D84: 3845 | F84: 8320 | G84: 4303 | H84: 4017
A85: La Cruz | B85: 10846 | C85: 5518 | D85: 5328 | F85: 12494 | G85: 6337 | H85: 6157
A86: Hojancha | B86: 5487 | C86: 2827 | D86: 2660 | F86: 5890 | G86: 3025 | H86: 2865
A87: Puntarenas | B87: =SUM(B88:B98) -> 287254 | C87: =SUM(C88:C98) -> 147881 | D87: =SUM(D88:D98) -> 139373 | F87: 305149 | G87: =SUM(G88:G98) -> 156556 | H87: =SUM(H88:H98) -> 148593
A88: Puntarenas | B88: =+C88+D88 -> 82240 | C88: 42269 | D88: 39971 | F88: 85288 | G88: 43678 | H88: 41610
A89: Esparza | B89: 20599 | C89: 10214 | D89: 10385 | F89: 22196 | G89: 10996 | H89: 11200
A90: Buenos Aires | B90: 29985 | C90: 15711 | D90: 14274 | F90: 31593 | G90: 16434 | H90: 15159
A91: Montes de Oro | B91: 9616 | C91: 4807 | D91: 4809 | F91: 10068 | G91: 5029 | H91: 5039
A92: Osa | B92: 20090 | C92: 10649 | D92: 9441 | F92: 21791 | G92: 11459 | H92: 10332
A93: Quepos | B93: 18025 | C93: 9561 | D93: 8464 | F93: 19137 | G93: 10147 | H93: 8990
A94: Golfito | B94: 27210 | C94: 14223 | D94: 12987 | F94: 29158 | G94: 15141 | H94: 14017
A95: Coto Brus | B95: 27667 | C95: 13980 | D95: 13687 | F95: 29244 | G95: 14805 | H95: 14439
A96: Parrita | B96: 10844 | C96: 5604 | D96: 5240 | F96: 11738 | G96: 6073 | H96: 5665
A97: Corredores | B97: 31122 | C97: 15640 | D97: 15482 | F97: 33564 | G97: 16833 | H97: 16731
A98: Garabito | B98: 9856 | C98: 5223 | D98: 4633 | F98: 11372 | G98: 5961 | H98: 5411
A99: Limón | B99: =SUM(B100:B105) -> 249285 | C99: =SUM(C100:C105) -> 129143 | D99: =SUM(D100:D105) -> 120142 | F99: 267170 | G99: =SUM(G100:G105) -> 137908 | H99: =SUM(H100:H105) -> 129262
A100: Limón | B100: =+C100+D100 -> 64961 | C100: 32762 | D100: 32199 | F100: 67556 | G100: 33926 | H100: 33630
A101: Pococí | B101: 83344 | C101: 43586 | D101: 39758 | F101: 90078 | G101: 47010 | H101: 43068
A102: Siquirres | B102: 37389 | C102: 19658 | D102: 17731 | F102: 39665 | G102: 20693 | H102: 18972
A103: Talamanca | B103: 17572 | C103: 9254 | D103: 8318 | F103: 20148 | G103: 10552 | H103: 9596
A104: Matina | B104: 19837 | C104: 10370 | D104: 9467 | F104: 21417 | G104: 11148 | H104: 10269
A105: Guácimo | B105: 26182 | C105: 13513 | D105: 12669 | F105: 28306 | G105: 14579 | H105: 13727
A106: En el extranjero 1/ | B106: =SUM(C106:D106) -> 12654 | C106: 6508 | D106: 6146 | F106: =SUM(G106:H106) -> 26237 | G106: 13647 | H106: 12590
A109: 1/ Costarricenses inscritos(as) que pueden ejercer el voto en extranjero para designar los puestos de Presidencia y Vicepresidencias, así como en consultas populares de orden nacional, según el artículo 187 del Código Electoral.
A110: Fuente: Sección Padrón Electoral del Tribunal Supremo de Elecciones.

Sheet 3
A1: CUADRO 3
A2: COSTA RICA: ELECTORADO POR PROVINCIA, SEGÚN SEXO Y
A3: GRUPO DE EDAD 1/, AL 31 DE DICIEMBRE 2016
A5: Sexo y grupo de edad | B5: Total | C5: San José | D5: Alajuela | E5: Cartago | F5: Heredia | G5: Guanacaste | H5: Puntarenas | I5: Limón | J5: En el extranjero 2/
A7: Costa Rica | B7: =B24+B41 -> 3256590 | C7: 1100177 | D7: 616023 | E7: 380678 | F7: 325572 | G7: 235584 | H7: 305149 | I7: 267170 | J7: 26237
A8: 16 - 19 | B8: 146764 | C8: =C25+C42 -> 45540 | D8: 29067 | E8: 17009 | F8: 14042 | G8: 11288 | H8: 14826 | I8: 14461 | J8: 531
A9: 20 - 24 | B9: 389181 | C9: 123010 | D9: 75640 | E9: 45612 | F9: 36832 | G9: 29405 | H9: 38959 | I9: 37402 | J9: 2321
A10: 25 - 29 | B10: 393724 | C10: 130228 | D10: 76665 | E10: 47230 | F10: 37819 | G10: 28212 | H10: 37382 | I10: 34082 | J10: 2106
A11: 30 - 34 | B11: 376681 | C11: 124917 | D11: 71501 | E11: 43739 | F11: 38005 | G11: 27017 | H11: 36054 | I11: 31910 | J11: 3538
A12: 35 - 39 | B12: 328161 | C12: 110761 | D12: 60246 | E12: 38538 | F12: 34753 | G12: 23664 | H12: 30472 | I12: 26015 | J12: 3712
A13: 40 - 44 | B13: 274444 | C13: 90020 | D13: 50094 | E13: 33095 | F13: 28719 | G13: 19893 | H13: 26168 | I13: 23187 | J13: 3268
A14: 45 - 49 | B14: 271288 | C14: 89476 | D14: 51097 | E14: 32783 | F14: 27251 | G14: 19377 | H14: 25863 | I14: 22574 | J14: 2867
A15: 50 - 54 | B15: 270109 | C15: 92000 | D15: 51635 | E15: 32222 | F15: 27154 | G15: 19149 | H15: 24635 | I15: 20753 | J15: 2561
A16: 55 - 59 | B16: 235644 | C16: 82963 | D16: 44471 | E16: 27283 | F16: 23998 | G16: 16290 | H16: 20938 | I16: 17687 | J16: 2014
A17: 60 - 64 | B17: 185313 | C17: 67164 | D17: 33614 | E17: 20803 | F17: 19244 | G17: 12868 | H17: 16401 | I17: 13843 | J17: 1376
A18: 65 - 69 | B18: 133981 | C18: 49775 | D18: 24440 | E18: 14469 | F18: 13596 | G18: 9529 | H18: 11703 | I18: 9564 | J18: 905
A19: 70 - 74 | B19: 96094 | C19: 35615 | D19: 18317 | E19: 10808 | F19: 9413 | G19: 6808 | H19: 8369 | I19: 6295 | J19: 469
A20: 75 - 79 | B20: 67857 | C20: 24754 | D20: 13045 | E20: 7679 | F20: 6458 | G20: 5174 | H20: 6093 | I20: 4391 | J20: 263
A21: 80 - 84 | B21: 44964 | C21: 17209 | D21: 8371 | E21: 5005 | F21: 4233 | G21: 3360 | H21: 3896 | I21: 2719 | J21: 171
A22: 85 y más | B22: 42385 | C22: 16745 | D22: 7820 | E22: 4403 | F22: 4055 | G22: 3550 | H22: 3390 | I22: 2287 | J22: 135
A24: Hombres | B24: =SUM(C24:J24) -> 1624019 | C24: =SUM(C25:C39) -> 536449 | D24: 310665 | E24: 189501 | F24: 160232 | G24: 119061 | H24: 156556 | I24: 137908 | J24: =SUM(J25:J39) -> 13647
A25: 16 - 19 | B25: =SUM(C25:J25) -> 74517 | C25: 23040 | D25: 14853 | E25: 8645 | F25: 7084 | G25: 5721 | H25: 7591 | I25: 7304 | J25: 279
A26: 20 - 24 | B26: =SUM(C26:J26) -> 198688 | C26: 62375 | D26: 39004 | E26: 23328 | F26: 18839 | G26: 14992 | H26: 19871 | I26: 19159 | J26: 1120
A27: 25 - 29 | B27: 201114 | C27: 66166 | D27: 39649 | E27: 24208 | F27: 19282 | G27: 14284 | H27: 19073 | I27: 17344 | J27: 1108
A28: 30 - 34 | B28: 190914 | C28: 62926 | D28: 36761 | E28: 22137 | F28: 19119 | G28: 13756 | H28: 18137 | I28: 16092 | J28: 1986
A29: 35 - 39 | B29: 165363 | C29: 55653 | D29: 30777 | E29: 19270 | F29: 17390 | G29: 11876 | H29: 15298 | I29: 13017 | J29: 2082
A30: 40 - 44 | B30: 137844 | C30: 44857 | D30: 25029 | E30: 16398 | F30: 14317 | G30: 10023 | H30: 13429 | I30: 11965 | J30: 1826
A31: 45 - 49 | B31: 135554 | C31: 43994 | D31: 25553 | E31: 16183 | F31: 13399 | G31: 9873 | H31: 13360 | I31: 11663 | J31: 1529
A32: 50 - 54 | B32: 133884 | C32: 44612 | D32: 25617 | E32: 15965 | F32: 13151 | G32: 9661 | H32: 12736 | I32: 10819 | J32: 1323
A33: 55 - 59 | B33: 116278 | C33: 39338 | D33: 22242 | E33: 13427 | F33: 11630 | G33: 8338 | H33: 10907 | I33: 9401 | J33: 995
A34: 60 - 64 | B34: 90276 | C34: 31244 | D34: 16751 | E34: 10036 | F34: 9093 | G34: 6531 | H34: 8524 | I34: 7478 | J34: 619
A35: 65 - 69 | B35: 64580 | C35: 22607 | D35: 12056 | E35: 6908 | F35: 6339 | G35: 4773 | H35: 6207 | I35: 5276 | J35: 414
A36: 70 - 74 | B36: 45897 | C36: 15976 | D36: 8963 | E36: 5203 | F36: 4338 | G36: 3362 | H36: 4429 | I36: 3438 | J36: 188
A37: 75 - 79 | B37: 31737 | C37: 10672 | D37: 6174 | E37: 3645 | F37: 2922 | G37: 2601 | H37: 3227 | I37: 2405 | J37: 91
A38: 80 - 84 | B38: 19881 | C38: 6917 | D38: 3846 | E38: 2221 | F38: 1766 | G38: 1642 | H38: 2021 | I38: 1418 | J38: 50
A39: 85 y más | B39: 17492 | C39: 6072 | D39: 3390 | E39: 1927 | F39: 1563 | G39: 1628 | H39: 1746 | I39: 1129 | J39: 37
A41: Mujeres | B41: =SUM(C41:J41) -> 1632571 | C41: =SUM(C42:C56) -> 563728 | D41: =SUM(D42:D56) -> 305358 | E41: 191177 | F41: 165340 | G41: 116523 | H41: 148593 | I41: 129262 | J41: =SUM(J42:J56) -> 12590
A42: 16 - 19 | B42: =SUM(C42:J42) -> 72247 | C42: 22500 | D42: 14214 | E42: 8364 | F42: 6958 | G42: 5567 | H42: 7235 | I42: 7157 | J42: 252
A43: 20 - 24 | B43: 190493 | C43: 60635 | D43: 36636 | E43: 22284 | F43: 17993 | G43: 14413 | H43: 19088 | I43: 18243 | J43: 1201
A44: 25 - 29 | B44: 192610 | C44: 64062 | D44: 37016 | E44: 23022 | F44: 18537 | G44: 13928 | H44: 18309 | I44: 16738 | J44: 998
A45: 30 - 34 | B45: 185767 | C45: 61991 | D45: 34740 | E45: 21602 | F45: 18886 | G45: 13261 | H45: 17917 | I45: 15818 | J45: 1552
A46: 35 - 39 | B46: 162798 | C46: 55108 | D46: 29469 | E46: 19268 | F46: 17363 | G46: 11788 | H46: 15174 | I46: 12998 | J46: 1630
A47: 40 - 44 | B47: 136600 | C47: 45163 | D47: 25065 | E47: 16697 | F47: 14402 | G47: 9870 | H47: 12739 | I47: 11222 | J47: 1442
A48: 45 - 49 | B48: 135734 | C48: 45482 | D48: 25544 | E48: 16600 | F48: 13852 | G48: 9504 | H48: 12503 | I48: 10911 | J48: 1338
A49: 50 - 54 | B49: 136225 | C49: 47388 | D49: 26018 | E49: 16257 | F49: 14003 | G49: 9488 | H49: 11899 | I49: 9934 | J49: 1238
A50: 55 - 59 | B50: =SUM(C50:J50) -> 119366 | C50: 43625 | D50: 22229 | E50: 13856 | F50: 12368 | G50: 7952 | H50: 10031 | I50: 8286 | J50: 1019
A51: 60 - 64 | B51: 95037 | C51: 35920 | D51: 16863 | E51: 10767 | F51: 10151 | G51: 6337 | H51: 7877 | I51: 6365 | J51: 757
A52: 65 - 69 | B52: 69401 | C52: 27168 | D52: 12384 | E52: 7561 | F52: 7257 | G52: 4756 | H52: 5496 | I52: 4288 | J52: 491
A53: 70 - 74 | B53: 50197 | C53: 19639 | D53: 9354 | E53: 5605 | F53: 5075 | G53: 3446 | H53: 3940 | I53: 2857 | J53: 281
A54: 75 - 79 | B54: 36120 | C54: 14082 | D54: 6871 | E54: 4034 | F54: 3536 | G54: 2573 | H54: 2866 | I54: 1986 | J54: 172
A55: 80 - 84 | B55: 25083 | C55: 10292 | D55: 4525 | E55: 2784 | F55: 2467 | G55: 1718 | H55: 1875 | I55: 1301 | J55: 121
A56: 85 y más | B56: =SUM(C56:J56) -> 24893 | C56: 10673 | D56: 4430 | E56: 2476 | F56: 2492 | G56: 1922 | H56: 1644 | I56: 1158 | J56: 98
A59: 1/ Incluye las personas menores que tramitarán su cédula y cumplirán 18 años hasta el 4 de febrero de 2018. Según el artículo 76 de la Ley 3504: "Ley Orgánica del Tribunal Supremo de Elecciones y del Registro Civil".
A60: 2/ Costarricenses inscritos(as) que pueden ejercer el voto en extranjero para designar los puestos de Presidencia y Vicepresidencias, así como en consultas populares de orden nacional, según el artículo 187 del Código Electoral.
A61: Fuente: Sección Padrón Electoral del Tribunal Supremo de Elecciones.

Sheet G1
H2: GRÁFICO 1
A3: POR MES, SEGÚN PROVINCIA Y SEXO, AL 30 DE JUNIO DE 2016 | H3: COSTA RICA: PORCENTAJE DEL ELECTORADO, POR SEXO Y GRUPO DE EDAD
H4: AL 31 DE DICIEMBRE 2016
A6: GRUPOS DE EDAD | B6: ELECTORES | F6: PORCENTAJE
B7: Total | C7: Hombres | D7: Mujeres | E7: Sin lugar | F7: Hombres | G7: Mujeres
B9: 3256590 | C9: 1624019 | D9: 1632571
A11: Menos de 20 | B11: 146764 | C11: 74517 | D11: 72247 | F11: -4.588431539 | G11: 4.448654849
A12: 20 a 24 | B12: 389181 | C12: 198688 | D12: 190493 | F12: -12.23433962 | G12: 11.7297273
A13: 25 a 29 | B13: 393724 | C13: 201114 | D13: 192610 | F13: -12.38372211 | G13: 11.86008292
A14: 30 a 34 | B14: 376681 | C14: 190914 | D14: 185767 | F14: -11.75565064 | G14: 11.43872085
A15: 35 a 39 | B15: 328161 | C15: 165363 | D15: 162798 | F15: -10.18233161 | G15: 10.02439011
A16: 40 a 44 | B16: 274444 | C16: 137844 | D16: 136600 | F16: -8.487831731 | G16: 8.411231642
A17: 45 a 49 | B17: 271288 | C17: 135554 | D17: 135734 | F17: -8.346823529 | G17: 8.357907143
A18: 50 a 54 | B18: 270109 | C18: 133884 | D18: 136225 | F18: -8.243992219 | G18: 8.388140779
A19: 55 a 59 | B19: 235644 | C19: 116278 | D19: 119366 | F19: -7.159891602 | G19: 7.350037161
A20: 60 a 64 | B20: 185313 | C20: 90276 | D20: 95037 | F20: -5.55880196 | G20: 5.851963555
A21: 65 a 69 | B21: 133981 | C21: 64580 | D21: 69401 | F21: -3.976554461 | G21: 4.273410594
A22: 70 a 74 | B22: 96094 | C22: 45897 | D22: 50197 | F22: -2.826136886 | G22: 3.090912114
A23: 75 a 79 | B23: 67857 | C23: 31737 | D23: 36120 | F23: -1.954225905 | G23: 2.22411191
A24: 80 a 84 | B24: 44964 | C24: 19881 | D24: 25083 | F24: -1.224185185 | G24: 1.544501635
A25: 85 y más | B25: 42385 | C25: 17492 | D25: 24893 | F25: -1.077080995 | G25: 1.532802264
H30: Fuente: Cuadro 3.

Sheet 4
A1: CUADRO 4
A2: COSTA RICA: ELECTORADO EN EL PADRÓN INSCRITO EN EL EXTRANJERO1/
A3: POR SEXO, SEGÚN CONTINENTE Y PAÍS
A4: AL 31 DE DICIEMBRE 2016
A6: Continente y país | B6: Total | D6: Hombres | F6: Mujeres
B7: Absoluto | C7: % | D7: Absoluto | E7: % | F7: Absoluto | G7: %
A9: Total | B9: =B11+B36+B50+B59 -> 26237 | C9: =B9/B$9*100 -> 100 | D9: =D11+D36+D50+D59 -> 13647 | E9: =D9/D$9*100 -> 100 | F9: =F11+F36+F50+F59 -> 12590 | G9: =F9/F$9*100 -> 100
A11: América | B11: =D11+F11 -> 23740 | C11: =B11/B$9*100 -> 90.48290582 | D11: =SUM(D12:D34) -> 12491 | E11: =D11/D$9*100 -> 91.52927383 | F11: =SUM(F12:F34) -> 11249 | G11: =F11/F$9*100 -> 89.34868944
A12: Estados Unidos | B12: 18961 | C12: 72.2681709 | D12: 10168 | E12: 74.5072177 | F12: 8793 | G12: 69.84114376
A13: Canadá | B13: 879 | C13: 3.35023059 | D13: 500 | E13: 3.663808896 | F13: 379 | G13: 3.010325655
A14: México | B14: 712 | C14: 2.713724892 | D14: 299 | E14: 2.19095772 | F14: 413 | G14: 3.280381255
A15: Panamá | B15: 534 | C15: 2.035293669 | D15: 237 | E15: 1.736645417 | F15: 297 | G15: 2.359015091
A16: Guatemala | B16: 358 | C16: 1.364485269 | D16: 152 | E16: 1.113797904 | F16: 206 | G16: 1.636219222
A17: Nicaragua | B17: 358 | C17: 1.364485269 | D17: 187 | E17: 1.370264527 | F17: 171 | G17: 1.35822081
A18: Venezuela | B18: 353 | C18: 1.345428212 | D18: 167 | E18: 1.223712171 | F18: 186 | G18: 1.477362986
A19: Colombia | B19: 280 | C19: 1.067195182 | D19: 122 | E19: 0.8939693706 | F19: 158 | G19: 1.254964257
A20: El Salvador | B20: 266 | C20: 1.013835423 | D20: 113 | E20: 0.8280208104 | F20: 153 | G20: 1.215250199
A21: Argentina | B21: 185 | C21: 0.7051111026 | D21: 98 | E21: 0.7181065436 | F21: 87 | G21: 0.6910246227
A22: Honduras | B22: 181 | C22: 0.6898654572 | D22: 97 | E22: 0.7107789258 | F22: 84 | G22: 0.6671961875
A23: Chile | B23: 165 | C23: 0.6288828753 | D23: 84 | E23: 0.6155198945 | F23: 81 | G23: 0.6433677522
A24: Perú | B24: 128 | C24: 0.4878606548 | D24: 72 | E24: 0.527588481 | F24: 56 | G24: 0.4447974583
A25: Ecuador | B25: 105 | C25: 0.4001981934 | D25: 46 | E25: 0.3370704184 | F25: 59 | G25: 0.4686258936
A26: República Dominicana | B26: 103 | C26: 0.3925753707 | D26: 57 | E26: 0.4176742141 | F26: 46 | G26: 0.3653693407
A27: Brasil | B27: 54 | C27: 0.2058162137 | D27: 34 | E27: 0.2491390049 | F27: 20 | G27: 0.1588562351
A28: Bolivia | B28: 43 | C28: 0.1638906887 | D28: 21 | E28: 0.1538799736 | F28: 22 | G28: 0.1747418586
A29: Cuba | B29: 26 | C29: 0.09909669551 | D29: 13 | E29: 0.09525903129 | F29: 13 | G29: 0.1032565528
A30: Paraguay | B30: 20 | C30: 0.07622822731 | D30: 12 | E30: 0.0879314135 | F30: 8 | G30: 0.06354249404
A31: Uruguay | B31: 14 | C31: 0.05335975912 | D31: 8 | E31: 0.05862094233 | F31: 6 | G31: 0.04765687053
A32: Belice | B32: 8 | C32: 0.03049129093 | D32: 2 | E32: 0.01465523558 | F32: 6 | G32: 0.04765687053
A33: Trinidad y Tobago | B33: 5 | C33: 0.01905705683 | D33: 2 | E33: 0.01465523558 | F33: 3 | G33: 0.02382843527
A34: Jamaica | B34: 2 | C34: 0.007622822731 | D34: 0 | E34: 0 | F34: 2 | G34: 0.01588562351
A36: Europa | B36: =D36+F36 -> 2110 | C36: =B36/B$9*100 -> 8.042077981 | D36: =SUM(D37:D48) -> 968 | E36: =D36/D$9*100 -> 7.093134022 | F36: =SUM(F37:F48) -> 1142 | G36: =F36/F$9*100 -> 9.070691025
A37: España | B37: 598 | C37: 2.279223997 | D37: 293 | E37: 2.146992013 | F37: 305 | G37: 2.422557585
A38: Alemania | B38: 285 | C38: 1.086252239 | D38: 154 | E38: 1.12845314 | F38: 131 | G38: 1.04050834
A39: Francia | B39: 254 | C39: 0.9680984869 | D39: 103 | E39: 0.7547446325 | F39: 151 | G39: 1.199364575
A40: Suiza | B40: 237 | C40: 0.9033044937 | D40: 98 | E40: 0.7181065436 | F40: 139 | G40: 1.104050834
A41: Reino Unido | B41: 188 | C41: 0.7165453367 | D41: 82 | E41: 0.6008646589 | F41: 106 | G41: 0.8419380461
A42: Italia | B42: 177 | C42: 0.6746198117 | D42: 56 | E42: 0.4103465963 | F42: 121 | G42: 0.9610802224
A43: Holanda | B43: 149 | C43: 0.5679002935 | D43: 66 | E43: 0.4836227742 | F43: 83 | G43: 0.6592533757
A44: Bélgica | B44: 70 | C44: 0.2667987956 | D44: 35 | E44: 0.2564666227 | F44: 35 | G44: 0.2779984114
A45: Austria | B45: 66 | C45: 0.2515531501 | D45: 34 | E45: 0.2491390049 | F45: 32 | G45: 0.2541699762
A46: Noruega | B46: 53 | C46: 0.2020048024 | D46: 25 | E46: 0.1831904448 | F46: 28 | G46: 0.2223987292
A47: Rusia | B47: 32 | C47: 0.1219651637 | D47: 22 | E47: 0.1612075914 | F47: 10 | G47: 0.07942811755
A48: Turquía | B48: 1 | C48: 0.003811411366 | D48: 0 | E48: 0 | F48: 1 | G48: 0.007942811755
A50: Asia | B50: =D50+F50 -> 308 | C50: =B50/B$9*100 -> 1.173914701 | D50: =SUM(D51:D57) -> 148 | E50: =D50/D$9*100 -> 1.084487433 | F50: =SUM(F51:F57) -> 160 | G50: =F50/F$9*100 -> 1.270849881
A51: China | B51: =D51+F51 -> 88 | C51: 0.3354042002 | D51: 48 | E51: 0.351725654 | F51: 40 | G51: 0.3177124702
A52: Israel | B52: 76 | C52: 0.2896672638 | D52: 30 | E52: 0.2198285337 | F52: 46 | G52: 0.3653693407
A53: Japón | B53: 47 | C53: 0.1791363342 | D53: 18 | E53: 0.1318971202 | F53: 29 | G53: 0.2303415409
A54: Singapur | B54: 32 | C54: 0.1219651637 | D54: 17 | E54: 0.1245695025 | F54: 15 | G54: 0.1191421763
A55: Qatar | B55: 31 | C55: 0.1181537523 | D55: 15 | E55: 0.1099142669 | F55: 16 | G55: 0.1270849881
A56: Corea | B56: 26 | C56: 0.09909669551 | D56: 14 | E56: 0.1025866491 | F56: 12 | G56: 0.09531374106
A57: India | B57: 8 | C57: 0.03049129093 | D57: 6 | E57: 0.04396570675 | F57: 2 | G57: 0.01588562351
A59: Oceanía | B59: =D59+F59 -> 79 | C59: =B59/B$9*100 -> 0.3011014979 | D59: =SUM(D60) -> 40 | E59: =D59/D$9*100 -> 0.2931047117 | F59: =SUM(F60) -> 39 | G59: =F59/F$9*100 -> 0.3097696585
A60: Australia | B60: =D60+F60 -> 79 | C60: =B60/B$9*100 -> 0.3011014979 | D60: 40 | E60: =D60/D$9*100 -> 0.2931047117 | F60: 39 | G60: =F60/F$9*100 -> 0.3097696585
A63: 1/ Costarricenses inscritos(as) que pueden ejercer el voto en extranjero para designar los puestos de Presidencia y Vicepresidencias, así como en consultas populares de orden nacional, según el artículo 187 del Código Electoral.
A64: Fuente: Sección Padrón Electoral del Tribunal Supremo de Elecciones.

Sheet 5
A1: CUADRO 5
A2: COSTA RICA: ELECTORADO NATURALIZADO, POR PAÍS DE ORIGEN
A3: SEGÚN SEXO Y GRUPO DE EDAD1/, AL 31 DE DICIEMBRE 2016
A5: SEXO Y GRUPO DE EDAD | B5: País de origen
B6: Total | C6: Nicaragua | D6: Colombia | E6: El Salvador | F6: Cuba | G6: China | H6: Perú | I6: Panamá | J6: Resto de países
A8: Costa Rica | B8: =SUM(B9:B23) -> 57658 | C8: =SUM(C9:C23) -> 28983 | D8: 7399 | E8: 3753 | F8: 2340 | G8: 1821 | H8: 1781 | I8: 1541 | J8: =SUM(J9:J23) -> 10040
A9: 16 - 19 | B9: =SUM(C9:J9) -> 358 | C9: =C26+C43 -> 128 | D9: =D26+D43 -> 148 | E9: 7 | F9: 13 | G9: 7 | H9: 9 | I9: 4 | J9: 42
A10: 20 - 24 | B10: =SUM(C10:J10) -> 1346 | C10: =C27+C44 -> 553 | D10: 450 | E10: 13 | F10: 79 | G10: 45 | H10: 31 | I10: 8 | J10: 167
A11: 25 - 29 | B11: 2195 | C11: 1151 | D11: 424 | E11: 45 | F11: 116 | G11: 77 | H11: 57 | I11: 18 | J11: 307
A12: 30 - 34 | B12: 4292 | C12: 2517 | D12: 665 | E12: 86 | F12: 111 | G12: 155 | H12: 134 | I12: 51 | J12: 573
A13: 35 - 39 | B13: 6388 | C13: 3356 | D13: 1151 | E13: 341 | F13: 168 | G13: 229 | H13: 196 | I13: 60 | J13: 887
A14: 40 - 44 | B14: 7398 | C14: 3699 | D14: 1126 | E14: 471 | F14: 289 | G14: 266 | H14: 274 | I14: 143 | J14: 1130
A15: 45 - 49 | B15: 7416 | C15: 3721 | D15: 1011 | E15: 489 | F15: 314 | G15: 231 | H15: 212 | I15: 208 | J15: 1230
A16: 50 - 54 | B16: 6557 | C16: 3041 | D16: 921 | E16: 468 | F16: 350 | G16: 204 | H16: 213 | I16: 224 | J16: 1136
A17: 55 - 59 | B17: 5196 | C17: 2368 | D17: 588 | E17: 472 | F17: 234 | G17: 150 | H17: 214 | I17: 190 | J17: 980
A18: 60 - 64 | B18: 4606 | C18: 2108 | D18: 380 | E18: 471 | F18: 203 | G18: 128 | H18: 180 | I18: 167 | J18: 969
A19: 65 - 69 | B19: 3664 | C19: 1631 | D19: 239 | E19: 376 | F19: 145 | G19: 120 | H19: 122 | I19: 157 | J19: 874
A20: 70 - 74 | B20: 2870 | C20: 1453 | D20: 144 | E20: 225 | F20: 126 | G20: 87 | H20: 68 | I20: 121 | J20: 646
A21: 75 - 79 | B21: 2034 | C21: 1116 | D21: 81 | E21: 144 | F21: 78 | G21: 55 | H21: 40 | I21: 68 | J21: 452
A22: 80 - 84 | B22: 1543 | C22: 927 | D22: 41 | E22: 81 | F22: 53 | G22: 31 | H22: 21 | I22: 62 | J22: 327
A23: 85 y más | B23: 1795 | C23: 1214 | D23: 30 | E23: 64 | F23: 61 | G23: 36 | H23: 10 | I23: 60 | J23: 320
A25: Hombres | B25: =SUM(B26:B40) -> 25834 | C25: =SUM(C26:C40) -> 11886 | D25: =SUM(D26:D40) -> 3469 | E25: 1619 | F25: 1309 | G25: 992 | H25: 946 | I25: 667 | J25: 4946
A26: 16 - 19 | B26: =SUM(C26:J26) -> 175 | C26: 51 | D26: 84 | E26: 5 | F26: 8 | G26: 4 | H26: 5 | I26: 1 | J26: 17
A27: 20 - 24 | B27: =SUM(C27:J27) -> 672 | C27: 249 | D27: 244 | E27: 6 | F27: 51 | G27: 24 | H27: 12 | I27: 0 | J27: 86
A28: 25 - 29 | B28: 909 | C28: 418 | D28: 200 | E28: 18 | F28: 58 | G28: 47 | H28: 24 | I28: 8 | J28: 136
A29: 30 - 34 | B29: 1710 | C29: 887 | D29: 300 | E29: 45 | F29: 50 | G29: 95 | H29: 71 | I29: 13 | J29: 249
A30: 35 - 39 | B30: 2676 | C30: 1297 | D30: 515 | E30: 144 | F30: 84 | G30: 142 | H30: 91 | I30: 24 | J30: 379
A31: 40 - 44 | B31: 3191 | C31: 1490 | D31: 480 | E31: 212 | F31: 148 | G31: 150 | H31: 135 | I31: 60 | J31: 516
A32: 45 - 49 | B32: 3468 | C32: 1652 | D32: 487 | E32: 226 | F32: 182 | G32: 113 | H32: 107 | I32: 100 | J32: 601
A33: 50 - 54 | B33: 2980 | C33: 1289 | D33: 434 | E33: 192 | F33: 211 | G33: 105 | H33: 111 | I33: 103 | J33: 535
A34: 55 - 59 | B34: 2187 | C34: 814 | D34: 265 | E34: 196 | F34: 142 | G34: 79 | H34: 119 | I34: 80 | J34: 492
A35: 60 - 64 | B35: 2009 | C35: 794 | D35: 179 | E35: 169 | F35: 127 | G35: 70 | H35: 104 | I35: 67 | J35: 499
A36: 65 - 69 | B36: 1793 | C36: 722 | D36: 127 | E36: 170 | F36: 88 | G36: 64 | H36: 79 | I36: 63 | J36: 480
A37: 70 - 74 | B37: 1469 | C37: 676 | D37: 81 | E37: 103 | F37: 76 | G37: 42 | H37: 46 | I37: 60 | J37: 385
A38: 75 - 79 | B38: 1041 | C38: 541 | D38: 43 | E38: 79 | F38: 44 | G38: 22 | H38: 24 | I38: 36 | J38: 252
A39: 80 - 84 | B39: 689 | C39: 408 | D39: 19 | E39: 26 | F39: 18 | G39: 18 | H39: 13 | I39: 27 | J39: 160
A40: 85 y más | B40: 865 | C40: 598 | D40: 11 | E40: 28 | F40: 22 | G40: 17 | H40: 5 | I40: 25 | J40: 159
A42: Mujeres | B42: =SUM(B43:B57) -> 31824 | C42: 17097 | D42: 3930 | E42: 2134 | F42: 1031 | G42: 829 | H42: 835 | I42: 874 | J42: 5094
A43: 16 - 19 | B43: =SUM(C43:J43) -> 183 | C43: 77 | D43: 64 | E43: 2 | F43: 5 | G43: 3 | H43: 4 | I43: 3 | J43: 25
A44: 20 - 24 | B44: =SUM(C44:J44) -> 674 | C44: 304 | D44: 206 | E44: 7 | F44: 28 | G44: 21 | H44: 19 | I44: 8 | J44: 81
A45: 25 - 29 | B45: 1286 | C45: 733 | D45: 224 | E45: 27 | F45: 58 | G45: 30 | H45: 33 | I45: 10 | J45: 171
A46: 30 - 34 | B46: 2582 | C46: 1630 | D46: 365 | E46: 41 | F46: 61 | G46: 60 | H46: 63 | I46: 38 | J46: 324
A47: 35 - 39 | B47: 3712 | C47: 2059 | D47: 636 | E47: 197 | F47: 84 | G47: 87 | H47: 105 | I47: 36 | J47: 508
A48: 40 - 44 | B48: 4207 | C48: 2209 | D48: 646 | E48: 259 | F48: 141 | G48: 116 | H48: 139 | I48: 83 | J48: 614
A49: 45 - 49 | B49: 3948 | C49: 2069 | D49: 524 | E49: 263 | F49: 132 | G49: 118 | H49: 105 | I49: 108 | J49: 629
A50: 50 - 54 | B50: 3577 | C50: 1752 | D50: 487 | E50: 276 | F50: 139 | G50: 99 | H50: 102 | I50: 121 | J50: 601
A51: 55 - 59 | B51: 3009 | C51: 1554 | D51: 323 | E51: 276 | F51: 92 | G51: 71 | H51: 95 | I51: 110 | J51: 488
A52: 60 - 64 | B52: 2597 | C52: 1314 | D52: 201 | E52: 302 | F52: 76 | G52: 58 | H52: 76 | I52: 100 | J52: 470
A53: 65 - 69 | B53: 1871 | C53: 909 | D53: 112 | E53: 206 | F53: 57 | G53: 56 | H53: 43 | I53: 94 | J53: 394
A54: 70 - 74 | B54: 1401 | C54: 777 | D54: 63 | E54: 122 | F54: 50 | G54: 45 | H54: 22 | I54: 61 | J54: 261
A55: 75 - 79 | B55: 993 | C55: 575 | D55: 38 | E55: 65 | F55: 34 | G55: 33 | H55: 16 | I55: 32 | J55: 200
A56: 80 - 84 | B56: 854 | C56: 519 | D56: 22 | E56: 55 | F56: 35 | G56: 13 | H56: 8 | I56: 35 | J56: 167
A57: 85 y más | B57: 930 | C57: 616 | D57: 19 | E57: 36 | F57: 39 | G57: 19 | H57: 5 | I57: 35 | J57: 161
A60: 1/ Incluye las personas menores que tramitarán su cédula y cumplirán 18 años hasta el 4 de febrero de 2018. Según el artículo 76 de la Ley 3504: "Ley Orgánica del Tribunal Supremo de Elecciones y del Registro Civil".
A61: Fuente: Sección Padrón Electoral del Tribunal Supremo de Elecciones.

Sheet G2
A2: Costa Rica | E2: GRÁFICO 2
A3: Resto de países | B3: 10040 | C3: 17.41302161 | E3: COSTA RICA: PORCENTAJE DEL ELECTORADO NATURALIZADO
A4: Panamá | B4: 1541 | C4: 2.672656006 | E4: POR PAÍS DE ORIGEN, AL 31 DE DICIEMBRE 2016
A5: Perú | B5: 1781 | C5: 3.088903535
A6: China | B6: 1821 | C6: 3.158278123
A7: Cuba | B7: 2340 | C7: 4.058413403
A8: El Salvador | B8: 3753 | C8: 6.509070727
A9: Colombia | B9: 7399 | C9: 12.83256443
A10: Nicaragua | B10: 28983 | C10: 50.26709216
B11: 57658
A13: Los datos se copian del cuadro respectivo
A14: ya que el total de cada país puede variar | C14: 0
A15: y por tanto la posición dentros del gráfico
C16: 0
C18: 0
C20: 0
C22: 0
C24: 0
C26: 0
C28: 0
C30: 0
E31: Fuente: Cuadro 5.

Sheet 6
A1: CUADRO 6
A2: COSTA RICA: MOVIMIENTOS AL PADRÓN NACIONAL ELECTORAL
A3: POR TIPO DE MOVIMIENTO, SEGÚN MES
A4: AL 31 DE DICIEMBRE 2016
A6: Mes | B6: Padrón Nacional Electoral anterior | D6: Tipo de movimiento | O6: Padrón Nacional Electoral actual 2/
D7: Inclusiones | I7: Exclusiones
D8: Cédulas Primera vez1/ | F8: Cédulas renovadas | I8: Defunción | K8: Cédulas vencidas | M8: Otras
A10: Enero | B10: 3203650 | D10: 5104 | F10: 878 | I10: 3690 | K10: 5283 | M10: 28 | O10: =B10+D10+F10-I10-K10-M10 -> 3200631
A11: Febrero | B11: =O10 -> 3200631 | D11: 6499 | F11: 2981 | I11: 996 | K11: 3572 | M11: 38 | O11: =B11+D11+F11-I11-K11-M11 -> 3205505
A12: Marzo | B12: =O11 -> 3205505 | D12: 5331 | F12: 3339 | I12: 927 | K12: 4582 | M12: 7 | O12: 3208659
A13: Abril | B13: 3208659 | D13: 6450 | F13: 4127 | I13: 1931 | K13: 2920 | M13: 7 | O13: 3214378
A14: Mayo | B14: 3214378 | D14: 6365 | F14: 3953 | I14: 1750 | K14: 3922 | M14: 10 | O14: 3219014
A15: Junio | B15: 3219014 | D15: 6786 | F15: 3863 | I15: 1930 | K15: 5780 | M15: 20 | O15: 3221933
A16: Julio | B16: 3221933 | D16: 6601 | F16: 5929 | I16: 1280 | K16: 5522 | M16: 12 | O16: 3227649
A17: Agosto | B17: 3227649 | D17: 7116 | F17: 4221 | I17: 2083 | K17: 4942 | M17: 18 | O17: 3231943
A18: Setiembre | B18: 3231943 | D18: 8070 | F18: 5721 | I18: 1139 | K18: 5511 | M18: 12 | O18: 3239072
A19: Octubre | B19: 3239072 | D19: 7502 | F19: 4900 | I19: 1211 | K19: 5007 | M19: 7 | O19: 3245249
A20: Noviembre | B20: 3245249 | D20: 7392 | F20: 4269 | I20: 1884 | K20: 4589 | M20: 5 | O20: 3250432
A21: Diciembre | B21: 3250432 | D21: 5865 | F21: 4160 | I21: 611 | K21: 3251 | M21: 5 | O21: 3256590
A24: 1/ Incluye nuevos electores, inclusión condicional de nuevos electores y otras inclusiones.
A25: 2/ Incluye al electorado inscrito en Costa Rica y en el extranjero.
A27: Fuente: Sección Padrón Electoral del Tribunal Supremo de Elecciones.

Sheet 7
A1: CUADRO 7
A2: COSTA RICA: SOLICITUDES DE CÉDULA RECIBIDAS, POR CLASE DE SOLICITUD
A3: SEGÚN MES, AL 31 DE DICIEMBRE 2016
A4: (Absoluto y Porcentaje)
A6: Mes | B6: Clase de solicitud
B7: Absoluto | F7: Porcentaje
B8: Total | C8: Primera vez | D8: Duplicado | E8: Traslado | F8: Total | G8: Primera vez | H8: Duplicado | I8: Traslado
A10: TOTAL | B10: =SUM(B12:B23) -> 678476 | C10: =SUM(C12:C23) -> 79262 | D10: =SUM(D12:D23) -> 598445 | E10: =SUM(E12:E23) -> 769 | F10: =SUM(G10:I10) -> 100 | G10: =C10/$B10*100 -> 11.6823587 | H10: =D10/$B10*100 -> 88.20429905 | I10: =E10/$B10*100 -> 0.1133422553
A12: Enero | B12: =SUM(C12:E12) -> 70141 | C12: 6221 | D12: 63889 | E12: 31 | F12: =SUM(G12:I12) -> 100 | G12: =C12/$B12*100 -> 8.869277598 | H12: =D12/$B12*100 -> 91.08652571 | I12: =E12/$B12*100 -> 0.04419668953
A13: Febrero | B13: =SUM(C13:E13) -> 63470 | C13: 6342 | D13: 57069 | E13: 59 | F13: 100 | G13: =C13/$B13*100 -> 9.992122262 | H13: 89.91492043 | I13: 0.09295730266
A14: Marzo | B14: 50355 | C14: 6187 | D14: 44147 | E14: 21 | F14: 100 | G14: 12.28676398 | H14: 87.67153212 | I14: 0.04170390229
A15: Abril | B15: 53539 | C15: 6963 | D15: 46507 | E15: 69 | F15: 100 | G15: 13.00547265 | H15: 86.86564934 | I15: 0.1288780142
A16: Mayo | B16: 55641 | C16: 6876 | D16: 48715 | E16: 50 | F16: 100 | G16: 12.35779371 | H16: 87.55234449 | I16: 0.08986179256
A17: Junio | B17: 53025 | C17: 6618 | D17: 46356 | E17: 51 | F17: 100 | G17: 12.48090523 | H17: 87.42291372 | I17: 0.09618104668
A18: Julio | B18: 51650 | C18: 6716 | D18: 44877 | E18: 57 | F18: 100 | G18: 13.00290416 | H18: 86.88673766 | I18: 0.1103581801
A19: Agosto | B19: 54638 | C19: 7334 | D19: 47234 | E19: 70 | F19: 100 | G19: 13.42289249 | H19: 86.44899154 | I19: 0.1281159632
A20: Setiembre | B20: 57427 | C20: 7022 | D20: 50332 | E20: 73 | F20: =SUM(G20:I20) -> 100 | G20: 12.22769777 | H20: 87.64518432 | I20: 0.1271179062
A21: Octubre | B21: 62772 | C21: 7204 | D21: 55491 | E21: 77 | F21: 100 | G21: 11.47645447 | H21: 88.40087937 | I21: 0.1226661569
A22: Noviembre | B22: 58075 | C22: 6519 | D22: 51439 | E22: 117 | F22: 100 | G22: 11.22513991 | H22: 88.57339647 | I22: 0.2014636246
A23: Diciembre | B23: 47743 | C23: 5260 | D23: 42389 | E23: 94 | F23: 100 | G23: 11.01732191 | H23: 88.78579059 | I23: =E23/$B23*100 -> 0.1968875018
A26: Fuente: Sección Solicitudes Cedulares y Coordinación de Servicios Regionales del Tribunal Supremo de Elecciones.

Sheet G3
A2: GRÁFICO 3
A3: COSTA RICA: PORCENTAJE DE SOLICITUDES DE CÉDULA RECIBIDAS | J3: SOLICITUDES CEDULARES RECIBIDAS
A4: POR CLASE DE SOLICITUD, AL 31 DE DICIEMBRE 2016 | J4: TOTAL | K4: 678476
J5: Duplicado | K5: 598445 | L5: =+K5/$K$4*100 -> 88.20429905
J6: Primera vez | K6: 79262 | L6: =+K6/$K$4*100 -> 11.6823587
E7: Sin lugar | J7: Traslado | K7: 769 | L7: =K7/K4*100 -> 0.1133422553
A30: Fuente: Cuadro 7.

Sheet 8
A1: CUADRO 8
A2: COSTA RICA: SOLICITUDES DE CÉDULA RECIBIDAS, POR CLASE DE SOLICITUD
A3: SEGÚN PROVINCIA, AL 31 DE DICIEMBRE 2016
A4: (Absoluto y Porcentaje)
A6: Provincia | B6: Clase de solicitud
B7: Absoluto | F7: Porcentaje
B8: Total | C8: Primera vez | D8: Duplicado | E8: Traslado | F8: Total | G8: Primera vez | H8: Duplicado | I8: Traslado
A10: Costa Rica | B10: =SUM(C10:E10) -> 678476 | C10: =SUM(C12:C19) -> 79262 | D10: 598445 | E10: 769 | F10: 100 | G10: 100 | H10: 100 | I10: 100
A12: San José | B12: =SUM(C12:E12) -> 276626 | C12: 30659 | D12: 245635 | E12: 332 | F12: =(B12/B$10*100) -> 40.77167063 | G12: =(C12/C$10*100) -> 38.68057834 | H12: =D12/D$10*100 -> 41.04554303 | I12: =E12/E$10*100 -> 43.17295189
A13: Alajuela | B13: =SUM(C13:E13) -> 111639 | C13: 14688 | D13: 96831 | E13: 120 | F13: =(B13/B$10*100) -> 16.45437716 | G13: 18.530948 | H13: =D13/D$10*100 -> 16.18043429 | I13: 15.6046814
A14: Cartago | B14: 49171 | C14: 7113 | D14: 42010 | E14: 48 | F14: 7.247271827 | G14: 8.974035477 | H14: 7.019859803 | I14: 6.241872562
A15: Heredia | B15: 49497 | C15: 6317 | D15: 43080 | E15: 100 | F15: 7.295320689 | G15: 7.969771139 | H15: 7.198656518 | I15: =E15/E$10*100 -> 13.00390117
A16: Guanacaste | B16: 49294 | C16: 5844 | D16: 43420 | E16: 30 | F16: 7.265400692 | G16: 7.373016073 | H16: 7.255470428 | I16: 3.901170351
A17: Puntarenas | B17: 65766 | C17: 7123 | D17: 58621 | E17: 22 | F17: 9.693194748 | G17: 8.986651863 | H17: 9.795553476 | I17: 2.860858257
A18: Limón | B18: 71069 | C18: 7264 | D18: 63784 | E18: 21 | F18: 10.4747994 | G18: 9.164542908 | H18: 10.6582894 | I18: 2.730819246
A19: Giras | B19: 5414 | C19: 254 | D19: 5064 | E19: 96 | F19: =(B19/B$10*100) -> 0.7979648506 | G19: =(C19/C$10*100) -> 0.3204562085 | H19: =D19/D$10*100 -> 0.8461930503 | I19: =E19/E$10*100 -> 12.48374512
A22: Fuente: Sección Solicitudes Cedulares y Coordinación de Servicios Regionales del Tribunal Supremo de Elecciones.

Sheet G4
A2: GRÁFICO 4
A3: COSTA RICA: SOLICITUDES DE CÉDULA RECIBIDAS, POR CLASE DE SOLICITUD | L3: PV | M3: DUP | N3: TRASL
A4: SEGÚN PROVINCIA, AL 31 DE DICIEMBRE 2016 | K4: San José | L4: 30659 | M4: 245635 | N4: 332
K5: Alajuela | L5: 14688 | M5: 96831 | N5: 120
K6: Limón | L6: 7264 | M6: 63784 | N6: 21
E7: Sin lugar | K7: Puntarenas | L7: 7123 | M7: 58621 | N7: 22
K8: Cartago | L8: 7113 | M8: 42010 | N8: 48
K9: Guanacaste | L9: 5844 | M9: 43420 | N9: 30
K10: Heredia | L10: 6317 | M10: 43080 | N10: 100 | O10: 678476
K11: Ambulante | L11: 254 | M11: 5064 | N11: 96
K12: Total | L12: 79262 | M12: 598445 | N12: 769
L15: Duplicado | M15: Primera vez | N15: Traslado
K16: =K11 -> Ambulante | L16: =M11/1000 -> 5.064 | M16: =L11/1000 -> 0.254 | N16: =N11/1000 -> 0.096
K17: =K8 -> Cartago | L17: =M8/1000 -> 42.01 | M17: =L8/1000 -> 7.113 | N17: =N8/1000 -> 0.048
K18: =K10 -> Heredia | L18: =M10/1000 -> 43.08 | M18: =L10/1000 -> 6.317 | N18: =N10/1000 -> 0.1
K19: =K9 -> Guanacaste | L19: =M9/1000 -> 43.42 | M19: =L9/1000 -> 5.844 | N19: =N9/1000 -> 0.03
K20: Puntarenas | L20: =M7/1000 -> 58.621 | M20: =L7/1000 -> 7.123 | N20: =N7/1000 -> 0.022
K21: Limón | L21: =M6/1000 -> 63.784 | M21: =L6/1000 -> 7.264 | N21: =N6/1000 -> 0.021
K22: Alajuela | L22: =M5/1000 -> 96.831 | M22: =L5/1000 -> 14.688 | N22: =N5/1000 -> 0.12
K23: San José | L23: =M4/1000 -> 245.635 | M23: =L4/1000 -> 30.659 | N23: =N4/1000 -> 0.332
K24: Total | L24: =SUM(L16:L23) -> 598.445 | M24: =SUM(M16:M23) -> 79.262 | N24: =SUM(N16:N23) -> 0.769
A31: Fuente: Cuadro 8.

Sheet 9
A1: CUADRO 9
A2: COSTA RICA: SOLICITUDES DE CÉDULA RECIBIDAS
A3: POR FUENTE DE INGRESO, SEGÚN MES
A4: AL 31 DE DICIEMBRE 2016
A6: Mes | B6: Fuente de ingreso
B7: Total | C7: Sede central | D7: Oficinas regionales 1/ | E7: Consulados | F7: Cedulación a domicilio | G7: Cedulación ambulante
A9: TOTAL | B9: =SUM(B11:B22) -> 678476 | C9: 237508 | D9: 428187 | E9: 3972 | F9: 3395 | G9: 5414
A11: Enero | B11: =SUM(C11:G11) -> 70141 | C11: 24327 | D11: 44727 | E11: 291 | F11: 491 | G11: 305
A12: Febrero | B12: =SUM(C12:G12) -> 63470 | C12: 22708 | D12: 39425 | E12: 338 | F12: 480 | G12: 519
A13: Marzo | B13: 50355 | C13: 17464 | D13: 31794 | E13: 320 | F13: 231 | G13: 546
A14: Abril | B14: 53539 | C14: 18623 | D14: 33771 | E14: 471 | F14: 306 | G14: 368
A15: Mayo | B15: 55641 | C15: 19513 | D15: 35394 | E15: 334 | F15: 263 | G15: 137
A16: Junio | B16: 53025 | C16: 18530 | D16: 33441 | E16: 222 | F16: 272 | G16: 560
A17: Julio | B17: 51650 | C17: 18064 | D17: 32344 | E17: 441 | F17: 240 | G17: 561
A18: Agosto | B18: 54638 | C18: 19032 | D18: 34782 | E18: 235 | F18: 249 | G18: 340
A19: Setiembre | B19: 57427 | C19: 19846 | D19: 36439 | E19: 456 | F19: 204 | G19: 482
A20: Octubre | B20: 62772 | C20: 21404 | D20: 40334 | E20: 195 | F20: 247 | G20: 592
A21: Noviembre | B21: 58075 | C21: 20684 | D21: 36215 | E21: 404 | F21: 237 | G21: 535
A22: Diciembre | B22: 47743 | C22: 17313 | D22: 29521 | E22: 265 | F22: 175 | G22: 469
A25: 1/ El Tribunal Supremo de Elecciones cuenta con 32 Oficinas Regionales.
A27: Fuente: Sección Solicitudes Cedulares y Coordinación de Servicios Regionales del Tribunal Supremo de Elecciones.

Sheet G5
A2: GRÁFICO 5
A3: COSTA RICA: PORCENTAJE DE SOLICITUDES DE CÉDULA RECIBIDAS | J3: SOLICITUDES CEDULARES RECIBIDAS
A4: POR FUENTE DE INGRESO, AL 31 DEDICIEMBRE 2016 | J4: TOTAL | K4: =SUM(K5:K8) -> 678476
J5: Oficinas Regionales | K5: 428187 | L5: =+K5/$K$4*100 -> 63.11011738
J6: Sede Central | K6: 237508 | L6: =+K6/$K$4*100 -> 35.00610191
E7: Sin lugar | J7: Consulados y domicilio | K7: 7367 | L7: =+K7/$K$4*100 -> 1.085815858
J8: Cedulación Ambulante | K8: 5414 | L8: =+K8/$K$4*100 -> 0.7979648506
J11: Chequear que el orden sea de mayor a menor
A29: Fuente: Cuadro 9.

Sheet 10
A2: CUADRO 10
A3: SOLICITUDES DE CÉDULA RECIBIDAS EN LAS OFICINAS REGIONALES
A4: POR MES, SEGÚN OFICINA REGIONAL
A5: AL 31 DE DICIEMBRE 2016
A7: Oficina Regional | B7: Total | C7: Enero | D7: Febrero | E7: Marzo | F7: Abril | G7: Mayo | H7: Junio | I7: Julio | J7: Agosto | K7: Setiembre | L7: Octubre | M7: Noviembre | N7: Diciembre
A9: TOTAL | B9: =SUM(B11:B42) -> 428187 | C9: 44727 | D9: 39425 | E9: 31794 | F9: 33771 | G9: 35394 | H9: 33441 | I9: 32344 | J9: 34782 | K9: 36439 | L9: 40334 | M9: 36215 | N9: 29521
A11: Alajuela | B11: =SUM(C11:N11) -> 24295 | C11: 4118 | D11: 3624 | E11: 2745 | F11: 2997 | G11: 3188 | H11: 3050 | I11: 249 | J11: 3190 | K11: 263 | L11: 323 | M11: 318 | N11: 230
A12: Atenas | B12: 4272 | C12: 387 | D12: 311 | E12: 226 | F12: 252 | G12: 290 | H12: 260 | I12: 398 | J12: 266 | K12: 491 | L12: 527 | M12: 507 | N12: 357
A13: Buenos Aires | B13: 6898 | C13: 581 | D13: 487 | E13: 367 | F13: 419 | G13: 400 | H13: 398 | I13: 631 | J13: 445 | K13: 775 | L13: 890 | M13: 810 | N13: 695
A14: Cañas | B14: 20690 | C14: 1035 | D14: 800 | E14: 612 | F14: 698 | G14: 723 | H14: 728 | I14: 3024 | J14: 689 | K14: 3295 | L14: 3340 | M14: 3472 | N14: 2274
A15: Cartago | B15: 27001 | C15: 4199 | D15: 3612 | E15: 2843 | F15: 3015 | G15: 3306 | H15: 3091 | I15: 723 | J15: 2921 | K15: 815 | L15: 941 | M15: 745 | N15: 790
A16: Corredores | B16: 8071 | C16: 952 | D16: 967 | E16: 712 | F16: 802 | G16: 816 | H16: 798 | I16: 388 | J16: 834 | K16: 419 | L16: 505 | M16: 478 | N16: 400
A17: Coto Brus | B17: 5316 | C17: 482 | D17: 487 | E17: 386 | F17: 402 | G17: 376 | H17: 430 | I17: 431 | J17: 427 | K17: 495 | L17: 572 | M17: 411 | N17: 417
A18: Golfito | B18: 8591 | C18: 638 | D18: 504 | E18: 408 | F18: 451 | G18: 468 | H18: 386 | I18: 914 | J18: 441 | K18: 1141 | L18: 1135 | M18: 1175 | N18: 930
A19: Grecia | B19: 8472 | C19: 1404 | D19: 1177 | E19: 959 | F19: 953 | G19: 1006 | H19: 902 | I19: 207 | J19: 1006 | K19: 215 | L19: 272 | M19: 186 | N19: 185
A20: Guatuso | B20: 18275 | C20: 282 | D20: 259 | E20: 214 | F20: 223 | G20: 228 | H20: 162 | I20: 3263 | J20: 221 | K20: 3515 | L20: 3691 | M20: 3456 | N20: 2761
A21: Heredia | B21: 26034 | C21: 4282 | D21: 3843 | E21: 3844 | F21: 3145 | G21: 3353 | H21: 3196 | I21: 181 | J21: 3388 | K21: 197 | L21: 261 | M21: 210 | N21: 134
A22: Jicaral | B22: 9719 | C22: 292 | D22: 223 | E22: 158 | F22: 157 | G22: 171 | H22: 168 | I22: 1508 | J22: 205 | K22: 1708 | L22: 1951 | M22: 1720 | N22: 1458
A23: Liberia | B23: 21494 | C23: 1836 | D23: 1721 | E23: 1430 | F23: 1670 | G23: 1685 | H23: 1631 | I23: 1665 | J23: 1592 | K23: 2125 | L23: 2356 | M23: 2146 | N23: 1637
A24: Limón | B24: 14881 | C24: 2577 | D24: 2163 | E24: 1633 | F24: 1819 | G24: 1917 | H24: 1852 | I24: 204 | J24: 1827 | K24: 270 | L24: 258 | M24: 169 | N24: 192
A25: Los Chiles | B25: 5564 | C25: 298 | D25: 250 | E25: 193 | F25: 218 | G25: 210 | H25: 200 | I25: 726 | J25: 221 | K25: 786 | L25: 924 | M25: 839 | N25: 699
A26: Nicoya | B26: 8530 | C26: 1145 | D26: 900 | E26: 749 | F26: 784 | G26: 714 | H26: 792 | I26: 494 | J26: 649 | K26: 564 | L26: 659 | M26: 610 | N26: 470
A27: Orotina | B27: 5621 | C27: 751 | D27: 536 | E27: 437 | F27: 530 | G27: 544 | H27: 530 | I27: 307 | J27: 481 | K27: 396 | L27: 433 | M27: 391 | N27: 285
A28: Osa | B28: 10899 | C28: 457 | D28: 447 | E28: 320 | F28: 372 | G28: 403 | H28: 338 | I28: 1538 | J28: 367 | K28: 1986 | L28: 2119 | M28: 957 | N28: 1595
A29: Pérez Zeledón | B29: 24889 | C29: 2218 | D29: 2123 | E29: 1548 | F29: 1739 | G29: 1744 | H29: 1775 | I29: 2210 | J29: 1828 | K29: 2211 | L29: 2679 | M29: 2683 | N29: 2131
A30: Pococí | B30: 27485 | C30: 2786 | D30: 2496 | E30: 2059 | F30: 2372 | G30: 2537 | H30: 2269 | I30: 1786 | J30: 2490 | K30: 2062 | L30: 2464 | M30: 2370 | N30: 1794
A31: Puntarenas | B31: 17201 | C31: 2586 | D31: 2293 | E31: 1750 | F31: 1876 | G31: 2044 | H31: 1918 | I31: 478 | J31: 1936 | K31: 557 | L31: 647 | M31: 650 | N31: 466
A32: Puriscal | B32: 7559 | C32: 749 | D32: 649 | E32: 519 | F32: 530 | G32: 575 | H32: 552 | I32: 659 | J32: 529 | K32: 732 | L32: 853 | M32: 665 | N32: 547
A33: Quepos | B33: =SUM(C33:N33) -> 20178 | C33: 813 | D33: 757 | E33: 620 | F33: 640 | G33: 669 | H33: 301 | I33: 3114 | J33: 684 | K33: 3310 | L33: 3343 | M33: 3363 | N33: 2564
A34: San Carlos | B34: 22908 | C34: 2152 | D34: 1964 | E34: 1609 | F34: 1902 | G34: 1909 | H34: 1866 | I34: 1768 | J34: 1990 | K34: 2017 | L34: 2076 | M34: 1959 | N34: 1696
A35: San Ramón | B35: 17271 | C35: 1797 | D35: 1594 | E35: 1293 | F35: 1304 | G35: 1446 | H35: 1380 | I35: 1243 | J35: 1486 | K35: 1486 | L35: 1623 | M35: 1415 | N35: 1204
A36: Santa Cruz | B36: 10591 | C36: 1179 | D36: 937 | E36: 796 | F36: 842 | G36: 867 | H36: 790 | I36: 740 | J36: 912 | K36: 903 | L36: 926 | M36: 991 | N36: 708
A37: Sarapiquí | B37: 7760 | C37: 709 | D37: 706 | E37: 580 | F37: 656 | G37: 649 | H37: 618 | I37: 580 | J37: 621 | K37: 640 | L37: 782 | M37: 720 | N37: 499
A38: Siquirres | B38: 12705 | C38: 1264 | D38: 1257 | E38: 886 | F38: 962 | G38: 1003 | H38: 1055 | I38: 986 | J38: 1012 | K38: 1050 | L38: 1298 | M38: 1068 | N38: 864
A39: Talamanca | B39: 5724 | C39: 569 | D39: 497 | E39: 396 | F39: 436 | G39: 491 | H39: 441 | I39: 401 | J39: 475 | K39: 498 | L39: 536 | M39: 527 | N39: 457
A40: Tarrazú | B40: 3680 | C40: 304 | D40: 352 | E40: 303 | F40: 311 | G40: 284 | H40: 289 | I40: 280 | J40: 287 | K40: 354 | L40: 355 | M40: 324 | N40: 237
A41: Turrialba | B41: 10779 | C41: 1294 | D41: 1000 | E41: 805 | F41: 834 | G41: 843 | H41: 883 | I41: 782 | J41: 892 | K41: 878 | L41: 1001 | M41: 880 | N41: 687
A42: Upala 1/ | B42: 4834 | C42: 591 | D42: 489 | E42: 394 | F42: 460 | G42: 535 | H42: 392 | I42: 466 | J42: 470 | K42: 285 | L42: 594 | M42: 0 | N42: 158
A45: 1/ No se reportan datos debido a la emergencia nacional por el huracán Otto.
A46: FUENTE: Coordinación de Servicios Regionales del Tribunal Supremo de Elecciones.

Sheet 11
A1: CUADRO 11
A2: COSTA RICA: PRODUCTOS Y SERVICIOS BRINDADOS, POR TIPO DE SERVICIO
A3: SEGÚN MES, AL 31 DE DICIEMBRE 2016
A5: Mes | B5: Productos y Sevicios
B6: Cédulas de identidad impresas | C6: Tarjetas identidad de menores impresas | D6: Certificaciones y constancias expedidas | E6: Asambleas de partidos políticos fiscalizadas | F6: Atención de consultas en materia electoral 1/ | G6: Movimientos y actualizaciones al Padrón Electoral 2/
A8: Total | B8: =SUM(B10:B21) -> 679823 | C8: =SUM(C10:C21) -> 140890 | D8: 2513152 | E8: 1042 | F8: 33179 | G8: 761546
A10: Enero | B10: 70482 | C10: 15056 | D10: 242546 | E10: 6 | F10: 6412 | G10: 78713
A11: Febrero | B11: 63083 | C11: 16204 | D11: 289869 | E11: 8 | F11: 5659 | G11: 68872
A12: Marzo | B12: 50275 | C12: 7996 | D12: 212762 | E12: 5 | F12: 3887 | G12: 54851
A13: Abril | B13: 53680 | C13: 9679 | D13: 206247 | E13: 11 | F13: 1780 | G13: 59184
A14: Mayo | B14: 55986 | C14: 9525 | D14: 212928 | E14: 12 | F14: 1904 | G14: 62399
A15: Junio | B15: 37269 | C15: 9201 | D15: 214975 | E15: 17 | F15: 2488 | G15: 45899
A16: Julio | B16: 65279 | C16: 12021 | D16: 176276 | E16: 61 | F16: 1947 | G16: 74917
A17: Agosto | B17: 41807 | C17: 9806 | D17: 213063 | E17: 69 | F17: 2008 | G17: 48386
A18: Setiembre | B18: 70837 | C18: 10657 | D18: 192206 | E18: 213 | F18: 1837 | G18: 79012
A19: Octubre | B19: 61428 | C19: 13930 | D19: 201289 | E19: 255 | F19: 1932 | G19: 69631
A20: Noviembre | B20: 58950 | C20: 12495 | D20: 199387 | E20: 226 | F20: 1775 | G20: 66599
A21: Diciembre | B21: 50747 | C21: 14320 | D21: 151604 | E21: 159 | F21: 1550 | G21: 53083
A24: 1/ De Partidos Políticos, Municipalidades, Asamblea Legislativa y otros.
A25: 2/ El Padrón Nacional Electoral se cerró en octubre 2014 debido a las elecciones municipales de febrero 2015.
A27: Fuente: Oficinas del Tribunal Supremo de Elecciones.

Sheet 12
A2: CUADRO 12
A3: COSTA RICA: CERTIFICACIONES, CONSTANCIAS Y TARJETAS DE IDENTIDAD DE MENORES EXPEDIDAS
A4: SEGÚN MES, AL 31 DE DICIEMBRE 2016
A6: Certificaciones, constancias y TIM | B6: Total | C6: Enero | D6: Febrero | E6: Marzo | F6: Abril | G6: Mayo | H6: Junio | I6: Julio | J6: Agosto | K6: Setiembre | L6: Octubre | M6: Noviembre | N6: Diciembre
A8: Certificaciones y constancias expedidas | B8: =SUM(C8:N8) -> 2513152 | C8: =C9+C12 -> 242546 | D8: =D9+D12 -> 289869 | E8: =E9+E12 -> 212762 | F8: 206247 | G8: 212928 | H8: 214975 | I8: 176276 | J8: 213063 | K8: 192206 | L8: 201289 | M8: =M9+M12 -> 199387 | N8: 151604
A9: Sede Central | B9: =SUM(B10:B11) -> 839279 | C9: =SUM(C10:C11) -> 84408 | D9: =SUM(D10:D11) -> 79580 | E9: 64870 | F9: 65057 | G9: 70595 | H9: 84911 | I9: 63374 | J9: 71547 | K9: 63683 | L9: 68195 | M9: 71797 | N9: 51262
A10: Certificaciones | B10: =SUM(C10:N10) -> 838713 | C10: 84408 | D10: 79295 | E10: 64870 | F10: 65057 | G10: 70314 | H10: 84911 | I10: 63374 | J10: 71547 | K10: 63683 | L10: 68195 | M10: 71797 | N10: 51262
A11: Constancias | B11: =SUM(C11:N11) -> 566 | C11: 0 | D11: 285 | E11: 0 | F11: 0 | G11: 281 | H11: 0 | I11: 0 | J11: 0 | K11: 0 | L11: 0 | M11: 0 | N11: 0
A12: Oficinas regionales | B12: =SUM(B13:B14) -> 1673873 | C12: =SUM(C13:C14) -> 158138 | D12: =SUM(D13:D14) -> 210289 | E12: 147892 | F12: 141190 | G12: 142333 | H12: 130064 | I12: 112902 | J12: 141516 | K12: 128523 | L12: 133094 | M12: =SUM(M13:M14) -> 127590 | N12: 100342
A13: Certificaciones | B13: =SUM(C13:N13) -> 1533812 | C13: 144985 | D13: 187125 | E13: 136395 | F13: 129591 | G13: 133962 | H13: 121720 | I13: 105183 | J13: 129267 | K13: 118314 | L13: 120887 | M13: 113522 | N13: 92861
A14: Constancias | B14: =SUM(C14:N14) -> 140061 | C14: 13153 | D14: 23164 | E14: 11497 | F14: 11599 | G14: 8371 | H14: 8344 | I14: 7719 | J14: 12249 | K14: 10209 | L14: 12207 | M14: 14068 | N14: 7481
B15: =SUM(C15:D15) -> 0
A16: TIM expedidas | B16: =SUM(C16:N16) -> 140890 | C16: =C17+C20+C23 -> 15056 | D16: =D17+D20+D23 -> 16204 | E16: 7996 | F16: 9679 | G16: 9525 | H16: 9201 | I16: 12021 | J16: 9806 | K16: 10657 | L16: 13930 | M16: 12495 | N16: 14320
A17: Departamento Civil | B17: =SUM(C17:N17) -> 39987 | C17: =SUM(C18:C19) -> 4500 | D17: =SUM(D18:D19) -> 3955 | E17: 2340 | F17: 2700 | G17: 2725 | H17: 2606 | I17: 3911 | J17: 2825 | K17: 3218 | L17: 3949 | M17: 3621 | N17: 3637
A18: Emitidas por primera vez | B18: =SUM(C18:N18) -> 19510 | C18: 2031 | D18: 1554 | E18: 1060 | F18: 1309 | G18: 1340 | H18: 1308 | I18: 2120 | J18: 1429 | K18: 1748 | L18: 2289 | M18: 1659 | N18: 1663
A19: Duplicadas | B19: =SUM(C19:N19) -> 20477 | C19: 2469 | D19: 2401 | E19: 1280 | F19: 1391 | G19: 1385 | H19: 1298 | I19: 1791 | J19: 1396 | K19: 1470 | L19: 1660 | M19: 1962 | N19: 1974
A20: Oficinas regionales | B20: =SUM(B21:B22) -> 100859 | C20: =SUM(C21:C22) -> 10556 | D20: =SUM(D21:D22) -> 12249 | E20: =SUM(E21:E22) -> 5656 | F20: 6979 | G20: 6800 | H20: 6595 | I20: 8110 | J20: 6981 | K20: 7439 | L20: 9981 | M20: 8874 | N20: 10639
A21: Emitidas por primera vez | B21: =SUM(C21:N21) -> 51082 | C21: 4797 | D21: 4751 | E21: 2559 | F21: 3402 | G21: 3442 | H21: 3419 | I21: 4026 | J21: 3683 | K21: 4324 | L21: 6207 | M21: 4887 | N21: 5585
A22: Duplicadas | B22: =SUM(C22:N22) -> 49777 | C22: 5759 | D22: 7498 | E22: 3097 | F22: 3577 | G22: 3358 | H22: 3176 | I22: 4084 | J22: 3298 | K22: 3115 | L22: 3774 | M22: 3987 | N22: 5054
A23: Giras 1/ | B23: =SUM(B24:B25) -> 44 | C23: =SUM(C24:C25) -> 0 | D23: =SUM(D24:D25) -> 0 | E23: =SUM(E24:E25) -> 0 | F23: 0 | G23: 0 | H23: 0 | I23: 0 | J23: 0 | K23: 0 | L23: 0 | M23: 0 | N23: 44
A24: Emitidas por primera vez | B24: =SUM(C24:N24) -> 28 | C24: 0 | D24: 0 | E24: 0 | F24: 0 | G24: 0 | H24: 0 | I24: 0 | J24: 0 | K24: 0 | L24: 0 | M24: 0 | N24: 28
A25: Duplicadas | B25: =SUM(C25:N25) -> 16 | C25: 0 | D25: 0 | E25: 0 | F25: 0 | G25: 0 | H25: 0 | I25: 0 | J25: 0 | K25: 0 | L25: 0 | M25: 0 | N25: 16
A28: 1/ El servicio TIM ambulante se habilitó hasta diciembre.
A29: Fuente: Informe mensual de labores del Departamento Civil, Departamento Electoral y Coordinación de Servicios Regionales del Tribunal Supremo de Elecciones.

Sheet 13
A1: CUADRO 13
A2: COSTA RICA: INSCRIPCIONES CIVILES POR MES, SEGÚN CLASE DE INSCRIPCIÓN
A3: AL 31 DE DICIEMBRE 2016
A5: Clase de inscripción 1/ | B5: Total | C5: Mes
C6: Enero | D6: Febrero | E6: Marzo | F6: Abril | G6: Mayo | H6: Junio | I6: Julio | J6: Agosto | K6: Setiembre | L6: Octubre | M6: Noviembre | N6: Diciembre
A8: Nacimientos | B8: 68392 | C8: 6594 | D8: 7048 | E8: 5356 | F8: 6549 | G8: 5930 | H8: 6120 | I8: 5313 | J8: 5355 | K8: 4214 | L8: 5864 | M8: 6059 | N8: 3990
A9: Matrimonios: | B9: 29818 | C9: 2473 | D9: 4325 | E9: 2545 | F9: 2685 | G9: 2510 | H9: 2224 | I9: 1718 | J9: 2390 | K9: 1596 | L9: 2164 | M9: 2069 | N9: 3119
A10: Católicos | B10: 8254 | C10: 540 | D10: 1703 | E10: 561 | F10: 709 | G10: 591 | H10: 403 | I10: 390 | J10: 463 | K10: 407 | L10: 744 | M10: 778 | N10: 965
A11: Civiles | B11: 20375 | C11: 1905 | D11: 2541 | E11: 1924 | F11: 1830 | G11: 1867 | H11: 1756 | I11: 1286 | J11: 1881 | K11: 1144 | L11: 1324 | M11: 1240 | N11: 1677
A12: Extranjeros2/ | B12: 1189 | C12: 28 | D12: 81 | E12: 60 | F12: 146 | G12: 52 | H12: 65 | I12: 42 | J12: 46 | K12: 45 | L12: 96 | M12: 51 | N12: 477
A13: Defunciones | B13: 23476 | C13: 2623 | D13: 1618 | E13: 1812 | F13: 2196 | G13: 2022 | H13: 2030 | I13: 1753 | J13: 2158 | K13: 1282 | L13: 2494 | M13: 1888 | N13: 1600
A14: Divorcios | B14: 13155 | C14: 1100 | D14: 1317 | E14: 1193 | F14: 383 | G14: 1210 | H14: 1540 | I14: 686 | J14: 688 | K14: 1838 | L14: 1299 | M14: 1167 | N14: 734
A15: Separaciones Judiciales | B15: 52 | C15: 2 | D15: 7 | E15: 6 | F15: 4 | G15: 6 | H15: 4 | I15: 3 | J15: 4 | K15: 1 | L15: 11 | M15: 4 | N15: 0
A16: Reconocimientos | B16: 21484 | C16: 2297 | D16: 1625 | E16: 2203 | F16: 771 | G16: 2571 | H16: 1671 | I16: 1909 | J16: 2508 | K16: 1189 | L16: 3008 | M16: 740 | N16: 992
A17: Legitimaciones | B17: 15 | C17: 0 | D17: 2 | E17: 1 | F17: 1 | G17: 2 | H17: 0 | I17: 0 | J17: 5 | K17: 1 | L17: 1 | M17: 1 | N17: 1
A18: Adopciones | B18: 267 | C18: 14 | D18: 17 | E18: 28 | F18: 8 | G18: 18 | H18: 13 | I18: 16 | J18: 22 | K18: 39 | L18: 42 | M18: 41 | N18: 9
A19: Impugnación de paternidad | B19: 341 | C19: 54 | D19: 20 | E19: 23 | F19: 14 | G19: 54 | H19: 24 | I19: 13 | J19: 51 | K19: 9 | L19: 44 | M19: 12 | N19: 23
A20: Investigación de paternidad | B20: 348 | C20: 4 | D20: 30 | E20: 47 | F20: 35 | G20: 11 | H20: 27 | I20: 52 | J20: 47 | K20: 0 | L20: 46 | M20: 29 | N20: 20
A21: Opciones 3/ | B21: 115 | C21: 0 | D21: 4 | E21: 15 | F21: 4 | G21: 3 | H21: 14 | I21: 8 | J21: 10 | K21: 6 | L21: 34 | M21: 8 | N21: 9
A22: Cartas de naturalización entregadas | B22: 5562 | C22: 470 | D22: 552 | E22: 679 | F22: 700 | G22: 538 | H22: 355 | I22: 301 | J22: 708 | K22: 270 | L22: 488 | M22: 236 | N22: 265
A23: Hombres | B23: 2312 | C23: 176 | D23: 242 | E23: 291 | F23: 297 | G23: 226 | H23: 155 | I23: 120 | J23: 285 | K23: 107 | L23: 203 | M23: 88 | N23: 122
A24: Mujeres | B24: 3250 | C24: 294 | D24: 310 | E24: 388 | F24: 403 | G24: 312 | H24: 200 | I24: 181 | J24: 423 | K24: 163 | L24: 285 | M24: 148 | N24: 143
A27: 1/ Todos los datos se refieren a hechos inscritos en el mes respectivo, no así a los ocurridos.
A29: 2/ Matrimonios inscritos, pero realizados en el extranjero.
A31: 3/ Trámite realizado en Actos Jurídicos.
A33: Fuente: Sección de Inscripciones, Oficina de Actos Jurídicos, Sección de Opciones y Naturalizaciones del Tribunal Supremo de Elecciones.

Sheet G6
A2: GRÁFICO 6
A3: COSTA RICA: MATRIMONIOS INSCRITOS, SEGÚN CLASE DE INSCRIPCIÓN | K3: MATRIMONIOS INSCRITOS
A4: AL 31 DE DICIEMBRE 2016 | K4: Civiles | L4: 20375 | M4: =+L4/$L$7*100 -> 68.33120934
K5: Católicos | L5: 8254 | M5: =+L5/$L$7*100 -> 27.68126635
K6: Extranjeros | L6: 1189 | M6: =+L6/$L$7*100 -> 3.987524314
E7: Sin lugar | K7: Total | L7: =SUM(L4:L6) -> 29818
A29: Fuente: Cuadro 13.

Sheet G7
A2: GRÁFICO 7 | K2: MATRIMONIOS vs DIVORCIOS
A3: COSTA RICA: MATRIMONIOS Y DIVORCIOS INSCRITOS | L3: Matrimonios | M3: Divorcios
A4: POR MES, AL 31 DE DICIEMBRE 2016 | K4: ENE | L4: 2473 | M4: 1100
K5: FEB | L5: 4325 | M5: 1317
K6: MAR | L6: 2545 | M6: 1193
K7: ABR | L7: 2685 | M7: 383
K8: MAY | L8: 2510 | M8: 1210
K9: JUN | L9: 2224 | M9: 1540
K10: JUL | L10: 1718 | M10: 686
K11: AGO | L11: 2390 | M11: 688
K12: SET | L12: 1596 | M12: 1838
K13: OCT | L13: 2164 | M13: 1299
K14: NOV | L14: 2069 | M14: 1167
K15: DIC | L15: 3119 | M15: 734
L16: 29818 | M16: 13155
A30: Fuente: Cuadro 13.

Sheet 14
A1: CUADRO 14
A2: COSTA RICA: NACIMIENTOS INSCRITOS, POR PROVINCIA Y PARTIDO ESPECIAL
A3: SEGÚN MES, AL 31 DE DICIEMBRE 2016
A5: Mes | B5: Total | C5: San José | D5: Alajuela | E5: Cartago | F5: Heredia | G5: Guanacaste | H5: Puntarenas | I5: Limón | J5: Partido especial 1/
A7: Costa Rica | B7: =SUM(B9:B20) -> 68392 | C7: =SUM(C9:C20) -> 26379 | D7: =SUM(D9:D20) -> 11476 | E7: 6487 | F7: 5060 | G7: 5182 | H7: 6021 | I7: 5882 | J7: 1905
A9: Enero | B9: =SUM(C9:J9) -> 6594 | C9: 1318 | D9: 1421 | E9: 657 | F9: 816 | G9: 629 | H9: 734 | I9: 763 | J9: 256
A10: Febrero | B10: =SUM(C10:J10) -> 7048 | C10: 2916 | D10: 967 | E10: 942 | F10: 615 | G10: 438 | H10: 504 | I10: 523 | J10: 143
A11: Marzo | B11: 5356 | C11: 1605 | D11: 945 | E11: 531 | F11: 429 | G11: 570 | H11: 454 | I11: 670 | J11: 152
A12: Abril | B12: 6549 | C12: 2418 | D12: 1077 | E12: 881 | F12: 675 | G12: 596 | H12: 590 | I12: 209 | J12: 103
A13: Mayo | B13: 5930 | C13: 2465 | D13: 925 | E13: 504 | F13: 551 | G13: 405 | H13: 497 | I13: 468 | J13: 115
A14: Junio | B14: =SUM(C14:J14) -> 6120 | C14: 3120 | D14: 950 | E14: 343 | F14: 189 | G14: 427 | H14: 461 | I14: 498 | J14: 132
A15: Julio | B15: 5313 | C15: 1948 | D15: 947 | E15: 468 | F15: 274 | G15: 438 | H15: 448 | I15: 612 | J15: 178
A16: Agosto | B16: 5355 | C16: 2940 | D16: 717 | E16: 422 | F16: 121 | G16: 151 | H16: 400 | I16: 396 | J16: 208
A17: Setiembre | B17: 4214 | C17: 1753 | D17: 706 | E17: 331 | F17: 210 | G17: 237 | H17: 441 | I17: 453 | J17: 83
A18: Octubre | B18: 5864 | C18: 2775 | D18: 941 | E18: 263 | F18: 251 | G18: 394 | H18: 496 | I18: 467 | J18: 277
A19: Noviembre | B19: 6059 | C19: 2319 | D19: 1070 | E19: 457 | F19: 366 | G19: 238 | H19: 722 | I19: 672 | J19: 215
A20: Diciembre | B20: =SUM(C20:J20) -> 3990 | C20: 802 | D20: 810 | E20: 688 | F20: 563 | G20: 659 | H20: 274 | I20: 151 | J20: 43
A23: 1/ Inscripción de nacimientos de costarricenses nacidos en el extranjero.
A25: Fuente: Sección de Inscripciones del Tribunal Supremo de Elecciones.

Sheet 15
A1: CUADRO 15
A2: COSTA RICA: DEFUNCIONES INSCRITAS, POR PROVINCIA, SEGÚN MES
A3: AL 31 DE DICIEMBRE 2016
A5: Mes | B5: Total | C5: San José | D5: Alajuela | E5: Cartago | F5: Heredia | G5: Guanacaste | H5: Puntarenas | I5: Limón
A7: Costa Rica | B7: =SUM(B9:B20) -> 23476 | C7: =SUM(C9:C20) -> 8483 | D7: =SUM(D9:D20) -> 3947 | E7: 3099 | F7: 2240 | G7: 2014 | H7: 2079 | I7: 1614
A9: Enero | B9: =SUM(C9:I9) -> 2623 | C9: 1073 | D9: 568 | E9: 224 | F9: 222 | G9: 223 | H9: 184 | I9: 129
A10: Febrero | B10: =SUM(C10:I10) -> 1618 | C10: 691 | D10: 340 | E10: 196 | F10: 159 | G10: 67 | H10: 90 | I10: 75
A11: Marzo | B11: 1812 | C11: 634 | D11: 262 | E11: 254 | F11: 218 | G11: 188 | H11: 139 | I11: 117
A12: Abril | B12: 2196 | C12: 649 | D12: 465 | E12: 372 | F12: 182 | G12: 217 | H12: 171 | I12: 140
A13: Mayo | B13: =SUM(C13:I13) -> 2022 | C13: 802 | D13: 306 | E13: 250 | F13: 182 | G13: 135 | H13: 239 | I13: 108
A14: Junio | B14: 2030 | C14: 819 | D14: 311 | E14: 251 | F14: 303 | G14: 128 | H14: 126 | I14: 92
A15: Julio | B15: 1753 | C15: 774 | D15: 246 | E15: 176 | F15: 143 | G15: 138 | H15: 148 | I15: 128
A16: Agosto | B16: 2158 | C16: 821 | D16: 330 | E16: 254 | F16: 190 | G16: 204 | H16: 205 | I16: 154
A17: Setiembre | B17: 1282 | C17: 534 | D17: 224 | E17: 114 | F17: 130 | G17: 84 | H17: 106 | I17: 90
A18: Octubre | B18: 2494 | C18: 898 | D18: 372 | E18: 302 | F18: 211 | G18: 273 | H18: 237 | I18: 201
A19: Noviembre | B19: 1888 | C19: 564 | D19: 336 | E19: 357 | F19: 138 | G19: 178 | H19: 178 | I19: 137
A20: Diciembre | B20: 1600 | C20: 224 | D20: 187 | E20: 349 | F20: 162 | G20: 179 | H20: 256 | I20: 243
A23: Fuente: Sección de Inscripciones del Tribunal Supremo de Elecciones.

Sheet G8
A2: GRÁFICO 8 | K2: Nacimientos | L2: Defunciones
A3: COSTA RICA: NACIMIENTOS Y DEFUNCIONES INSCRITAS | K3: 68392 | L3: 23476
A4: POR MES, AL 31 DE DICIEMBRE 2016 | J4: ENE | K4: 6594 | L4: 2623
J5: FEB | K5: 7048 | L5: 1618
J6: MAR | K6: 5356 | L6: 1812
E7: Sin lugar | J7: ABR | K7: 6549 | L7: 2196
J8: MAY | K8: 5930 | L8: 2022
J9: JUN | K9: 6120 | L9: 2030
J10: JUL | K10: 5313 | L10: 1753
J11: AGO | K11: 5355 | L11: 2158
J12: SET | K12: 4214 | L12: 1282
J13: OCT | K13: 5864 | L13: 2494
J14: NOV | K14: 6059 | L14: 1888
J15: DIC | K15: 3990 | L15: 1600
A26: Fuente: Cuadros 14 y 15.

Sheet 16
A1: CUADRO 16
A2: COSTA RICA: TARJETAS DE IDENTIDAD DE MENORES IMPRESAS, POR PROVINCIA
A3: Y GIRAS, SEGÚN MES, AL 31 DE DICIEMBRE 2016
A5: Mes | B5: Total | C5: Provincia | J5: Giras1/
C6: San José | D6: Alajuela | E6: Cartago | F6: Heredia | G6: Guanacaste | H6: Puntarenas | I6: Limón
A8: Total | B8: =SUM(C8:J8) -> 140890 | C8: =SUM(C10:C21) -> 47624 | D8: =SUM(D10:D21) -> 27035 | E8: 12521 | F8: 12324 | G8: 11211 | H8: 14326 | I8: 15805 | J8: 44
A10: Enero | B10: =SUM(C10:J10) -> 15056 | C10: 5219 | D10: 2857 | E10: 1231 | F10: 1334 | G10: 1277 | H10: 1469 | I10: 1669 | J10: 0
A11: Febrero | B11: =SUM(C11:J11) -> 16204 | C11: 4761 | D11: 3308 | E11: 1153 | F11: 1359 | G11: 1500 | H11: 2027 | I11: 2096 | J11: 0
A12: Marzo | B12: 7996 | C12: 2747 | D12: 1684 | E12: 725 | F12: 676 | G12: 579 | H12: 777 | I12: 808 | J12: 0
A13: Abril | B13: 9679 | C13: 3298 | D13: 1874 | E13: 941 | F13: 835 | G13: 730 | H13: 998 | I13: 1003 | J13: 0
A14: Mayo | B14: 9525 | C14: 3260 | D14: 1776 | E14: 928 | F14: 819 | G14: 721 | H14: 979 | I14: 1042 | J14: 0
A15: Junio | B15: 9201 | C15: 3070 | D15: 1755 | E15: 953 | F15: 777 | G15: 738 | H15: 865 | I15: 1043 | J15: 0
A16: Julio | B16: 12021 | C16: 4610 | D16: 1986 | E16: 1227 | F16: 1122 | G16: 964 | H16: 1018 | I16: 1094 | J16: 0
A17: Agosto | B17: 9806 | C17: 3395 | D17: 1932 | E17: 904 | F17: 854 | G17: 757 | H17: 870 | I17: 1094 | J17: 0
A18: Setiembre | B18: 10657 | C18: 3804 | D18: 2116 | E18: 971 | F18: 1040 | G18: 728 | H18: 890 | I18: 1108 | J18: 0
A19: Octubre | B19: 13930 | C19: 4797 | D19: 2867 | E19: 1338 | F19: 1196 | G19: 847 | H19: 1303 | I19: 1582 | J19: 0
A20: Noviembre | B20: 12495 | C20: 4294 | D20: 2243 | E20: 1133 | F20: 1088 | G20: 960 | H20: 1291 | I20: 1486 | J20: 0
A21: Diciembre | B21: 14320 | C21: 4369 | D21: 2637 | E21: 1017 | F21: 1224 | G21: 1410 | H21: 1839 | I21: 1780 | J21: 44
A24: 1/ El servicio TIM ambulante se habilitó hasta diciembre.
A25: Fuente: Departamento Civil y Coordinación de Servicios Regionales del Tribunal Supremo de Elecciones.

Sheet 17
A1: CUADRO 17
A2: COSTA RICA: CERTIFICACIONES SOLICITADAS VÍA
A3: INTERNET, POR TIPO DE SOLICITUD, SEGÚN MES
A4: AL 31 DE DICIEMBRE 2016
A6: Mes | B6: Total | C6: Tipo de solicitud
C7: Nacimiento | D7: Matrimonio | E7: Defunción | F7: No aparece matrimonio
A9: Total | B9: =SUM(C9:F9) -> 72692 | C9: =SUM(C11:C22) -> 42954 | D9: =SUM(D11:D22) -> 14494 | E9: =SUM(E11:E22) -> 6506 | F9: =SUM(F11:F22) -> 8738
A11: Enero | B11: =SUM(C11:F11) -> 6010 | C11: 3128 | D11: 1425 | E11: 663 | F11: 794
A12: Febrero | B12: 6490 | C12: 3995 | D12: 1218 | E12: 509 | F12: 768
A13: Marzo | B13: 6168 | C13: 3682 | D13: 1252 | E13: 449 | F13: 785
A14: Abril | B14: 6083 | C14: 3490 | D14: 1354 | E14: 533 | F14: 706
A15: Mayo | B15: 6540 | C15: 3797 | D15: 1394 | E15: 595 | F15: 754
A16: Junio | B16: 6010 | C16: 3128 | D16: 1425 | E16: 663 | F16: 794
A17: Julio | B17: 5375 | C17: 3091 | D17: 1143 | E17: 563 | F17: 578
A18: Agosto | B18: 6850 | C18: 4292 | D18: 1349 | E18: 599 | F18: 610
A19: Setiembre | B19: 5961 | C19: 3515 | D19: 1173 | E19: 543 | F19: 730
A20: Octubre | B20: 6050 | C20: 3684 | D20: 1186 | E20: 475 | F20: 705
A21: Noviembre | B21: 6872 | C21: 4444 | D21: 922 | E21: 555 | F21: 951
A22: Diciembre | B22: 4283 | C22: 2708 | D22: 653 | E22: 359 | F22: 563
A25: Fuente: Departamento Civil del Tribunal Supremo de Elecciones.

Sheet 18
A2: CUADRO 18
A3: COSTA RICA: CARTAS DE NATURALIZACIÓN ENTREGADAS, POR MES
A4: SEGÚN PAÍS DE ORIGEN, AL 31 DE DICIEMBRE 2016
A6: País de origen | B6: Total | C6: Enero | D6: Febrero | E6: Marzo | F6: Abril | G6: Mayo | H6: Junio | I6: Julio | J6: Agosto | K6: Setiembre | L6: Octubre | M6: Noviembre | N6: Diciembre
A8: Total | B8: =SUM(B10:B76) -> 5562 | C8: 470 | D8: 552 | E8: 679 | F8: 700 | G8: 538 | H8: 355 | I8: 301 | J8: 708 | K8: 270 | L8: 488 | M8: 236 | N8: 265
A10: Alemania | B10: =SUM(C10:N10) -> 3 | C10: 0 | D10: 0 | E10: 1 | F10: 1 | G10: 0 | H10: 0 | I10: 0 | J10: 1 | K10: 0 | L10: 0 | M10: 0 | N10: 0
A11: Argentina | B11: =SUM(C11:N11) -> 28 | C11: 1 | D11: 3 | E11: 6 | F11: 3 | G11: 0 | H11: 1 | I11: 1 | J11: 3 | K11: 2 | L11: 8 | M11: 0 | N11: 0
A12: Bélgica | B12: 4 | C12: 1 | D12: 0 | E12: 0 | F12: 0 | G12: 0 | H12: 1 | I12: 0 | J12: 0 | K12: 0 | L12: 0 | M12: 1 | N12: 1
A13: Belice | B13: 5 | C13: 0 | D13: 0 | E13: 1 | F13: 1 | G13: 1 | H13: 0 | I13: 1 | J13: 1 | K13: 0 | L13: 0 | M13: 0 | N13: 0
A14: Bolivia | B14: 9 | C14: 0 | D14: 0 | E14: 3 | F14: 1 | G14: 0 | H14: 1 | I14: 1 | J14: 1 | K14: 0 | L14: 1 | M14: 1 | N14: 0
A15: Brasil | B15: 9 | C15: 1 | D15: 3 | E15: 0 | F15: 1 | G15: 2 | H15: 0 | I15: 0 | J15: 1 | K15: 0 | L15: 1 | M15: 0 | N15: 0
A16: Bulgaria | B16: 2 | C16: 0 | D16: 0 | E16: 0 | F16: 0 | G16: 0 | H16: 0 | I16: 0 | J16: 0 | K16: 0 | L16: 1 | M16: 0 | N16: 1
A17: Canadá | B17: 15 | C17: 3 | D17: 3 | E17: 0 | F17: 3 | G17: 0 | H17: 1 | I17: 0 | J17: 0 | K17: 3 | L17: 0 | M17: 0 | N17: 2
A18: Checoslovaquia | B18: 1 | C18: 0 | D18: 0 | E18: 0 | F18: 0 | G18: 0 | H18: 0 | I18: 1 | J18: 0 | K18: 0 | L18: 0 | M18: 0 | N18: 0
A19: Chile | B19: 13 | C19: 0 | D19: 2 | E19: 0 | F19: 2 | G19: 1 | H19: 0 | I19: 2 | J19: 0 | K19: 1 | L19: 4 | M19: 0 | N19: 1
A20: China | B20: 173 | C20: 13 | D20: 21 | E20: 23 | F20: 19 | G20: 8 | H20: 13 | I20: 15 | J20: 18 | K20: 10 | L20: 17 | M20: 5 | N20: 11
A21: Colombia | B21: 757 | C21: 64 | D21: 79 | E21: 86 | F21: 94 | G21: 97 | H21: 58 | I21: 45 | J21: 66 | K21: 35 | L21: 74 | M21: 25 | N21: 34
A22: Corea | B22: 2 | C22: 0 | D22: 0 | E22: 0 | F22: 0 | G22: 1 | H22: 0 | I22: 0 | J22: 0 | K22: 0 | L22: 0 | M22: 1 | N22: 0
A23: Cuba | B23: 113 | C23: 10 | D23: 14 | E23: 11 | F23: 8 | G23: 11 | H23: 9 | I23: 6 | J23: 19 | K23: 5 | L23: 11 | M23: 1 | N23: 8
A24: Dinamarca | B24: 1 | C24: 0 | D24: 0 | E24: 1 | F24: 0 | G24: 0 | H24: 0 | I24: 0 | J24: 0 | K24: 0 | L24: 0 | M24: 0 | N24: 0
A25: Ecuador | B25: 26 | C25: 3 | D25: 1 | E25: 1 | F25: 2 | G25: 5 | H25: 1 | I25: 3 | J25: 5 | K25: 1 | L25: 1 | M25: 1 | N25: 2
A26: Egipto | B26: 5 | C26: 1 | D26: 0 | E26: 0 | F26: 1 | G26: 0 | H26: 0 | I26: 1 | J26: 1 | K26: 0 | L26: 0 | M26: 0 | N26: 1
A27: El Salvador | B27: 196 | C27: 25 | D27: 19 | E27: 20 | F27: 37 | G27: 27 | H27: 12 | I27: 9 | J27: 5 | K27: 9 | L27: 18 | M27: 9 | N27: 6
A28: Eslovia | B28: 1 | C28: 0 | D28: 0 | E28: 1 | F28: 0 | G28: 0 | H28: 0 | I28: 0 | J28: 0 | K28: 0 | L28: 0 | M28: 0 | N28: 0
A29: España | B29: 40 | C29: 2 | D29: 4 | E29: 5 | F29: 3 | G29: 4 | H29: 0 | I29: 4 | J29: 7 | K29: 3 | L29: 3 | M29: 1 | N29: 4
A30: Estados Unidos | B30: 182 | C30: 7 | D30: 26 | E30: 25 | F30: 25 | G30: 16 | H30: 12 | I30: 9 | J30: 20 | K30: 6 | L30: 13 | M30: 9 | N30: 14
A31: Filipinas | B31: 15 | C31: 1 | D31: 1 | E31: 1 | F31: 4 | G31: 1 | H31: 0 | I31: 1 | J31: 2 | K31: 1 | L31: 0 | M31: 3 | N31: 0
A32: Francia | B32: 20 | C32: 1 | D32: 0 | E32: 7 | F32: 3 | G32: 1 | H32: 3 | I32: 1 | J32: 1 | K32: 0 | L32: 1 | M32: 1 | N32: 1
A33: Ghana | B33: 2 | C33: 1 | D33: 0 | E33: 0 | F33: 1 | G33: 0 | H33: 0 | I33: 0 | J33: 0 | K33: 0 | L33: 0 | M33: 0 | N33: 0
A34: Gran Bretaña | B34: 1 | C34: 0 | D34: 0 | E34: 0 | F34: 0 | G34: 0 | H34: 1 | I34: 0 | J34: 0 | K34: 0 | L34: 0 | M34: 0 | N34: 0
A35: Guatemala | B35: 43 | C35: 3 | D35: 4 | E35: 3 | F35: 6 | G35: 2 | H35: 3 | I35: 1 | J35: 10 | K35: 0 | L35: 5 | M35: 3 | N35: 3
A36: Guinea | B36: 1 | C36: 0 | D36: 0 | E36: 0 | F36: 0 | G36: 0 | H36: 0 | I36: 0 | J36: 0 | K36: 0 | L36: 0 | M36: 0 | N36: 1
A37: Guyana | B37: 1 | C37: 0 | D37: 1 | E37: 0 | F37: 0 | G37: 0 | H37: 0 | I37: 0 | J37: 0 | K37: 0 | L37: 0 | M37: 0 | N37: 0
A38: Haití | B38: 2 | C38: 0 | D38: 0 | E38: 0 | F38: 0 | G38: 0 | H38: 0 | I38: 0 | J38: 2 | K38: 0 | L38: 0 | M38: 0 | N38: 0
A39: Holanda | B39: 6 | C39: 0 | D39: 2 | E39: 0 | F39: 0 | G39: 1 | H39: 0 | I39: 1 | J39: 1 | K39: 0 | L39: 0 | M39: 1 | N39: 0
A40: Honduras | B40: 107 | C40: 7 | D40: 8 | E40: 21 | F40: 16 | G40: 13 | H40: 6 | I40: 9 | J40: 6 | K40: 5 | L40: 5 | M40: 5 | N40: 6
A41: India | B41: 2 | C41: 0 | D41: 0 | E41: 0 | F41: 0 | G41: 0 | H41: 1 | I41: 0 | J41: 0 | K41: 0 | L41: 1 | M41: 0 | N41: 0
A42: Inglaterra | B42: 6 | C42: 0 | D42: 0 | E42: 0 | F42: 2 | G42: 1 | H42: 0 | I42: 1 | J42: 0 | K42: 0 | L42: 1 | M42: 1 | N42: 0
A43: Iraq | B43: 1 | C43: 0 | D43: 0 | E43: 0 | F43: 0 | G43: 0 | H43: 1 | I43: 0 | J43: 0 | K43: 0 | L43: 0 | M43: 0 | N43: 0
A44: Israel | B44: 6 | C44: 0 | D44: 2 | E44: 1 | F44: 0 | G44: 0 | H44: 1 | I44: 0 | J44: 0 | K44: 0 | L44: 0 | M44: 2 | N44: 0
A45: Italia | B45: 23 | C45: 1 | D45: 2 | E45: 0 | F45: 6 | G45: 2 | H45: 2 | I45: 1 | J45: 3 | K45: 1 | L45: 2 | M45: 0 | N45: 3
A46: Jamaica | B46: 2 | C46: 0 | D46: 0 | E46: 0 | F46: 0 | G46: 0 | H46: 0 | I46: 0 | J46: 0 | K46: 0 | L46: 1 | M46: 0 | N46: 1
A47: Jordania | B47: 5 | C47: 1 | D47: 1 | E47: 0 | F47: 0 | G47: 0 | H47: 0 | I47: 0 | J47: 2 | K47: 0 | L47: 1 | M47: 0 | N47: 0
A48: Letonia | B48: 3 | C48: 0 | D48: 0 | E48: 2 | F48: 0 | G48: 0 | H48: 0 | I48: 0 | J48: 0 | K48: 0 | L48: 0 | M48: 0 | N48: 1
A49: Líbano | B49: 3 | C49: 0 | D49: 1 | E49: 0 | F49: 0 | G49: 1 | H49: 0 | I49: 0 | J49: 0 | K49: 0 | L49: 1 | M49: 0 | N49: 0
A50: Marruecos | B50: 1 | C50: 0 | D50: 0 | E50: 0 | F50: 0 | G50: 0 | H50: 0 | I50: 0 | J50: 1 | K50: 0 | L50: 0 | M50: 0 | N50: 0
A51: México | B51: 44 | C51: 3 | D51: 2 | E51: 4 | F51: 6 | G51: 3 | H51: 7 | I51: 3 | J51: 8 | K51: 1 | L51: 3 | M51: 3 | N51: 1
A52: Mongolia | B52: 1 | C52: 0 | D52: 1 | E52: 0 | F52: 0 | G52: 0 | H52: 0 | I52: 0 | J52: 0 | K52: 0 | L52: 0 | M52: 0 | N52: 0
A53: Nicaragua | B53: 3010 | C53: 279 | D53: 290 | E53: 403 | F53: 381 | G53: 269 | H53: 176 | I53: 141 | J53: 422 | K53: 153 | L53: 253 | M53: 121 | N53: 122
A54: Nigeria | B54: 4 | C54: 0 | D54: 0 | E54: 0 | F54: 2 | G54: 0 | H54: 0 | I54: 0 | J54: 0 | K54: 0 | L54: 0 | M54: 2 | N54: 0
A55: Nueva Zelanda | B55: 1 | C55: 0 | D55: 0 | E55: 0 | F55: 0 | G55: 0 | H55: 1 | I55: 0 | J55: 0 | K55: 0 | L55: 0 | M55: 0 | N55: 0
A56: Pakistán | B56: 1 | C56: 0 | D56: 0 | E56: 0 | F56: 0 | G56: 0 | H56: 1 | I56: 0 | J56: 0 | K56: 0 | L56: 0 | M56: 0 | N56: 0
A57: Palestina | B57: 4 | C57: 0 | D57: 0 | E57: 0 | F57: 1 | G57: 1 | H57: 0 | I57: 0 | J57: 1 | K57: 1 | L57: 0 | M57: 0 | N57: 0
A58: Panamá | B58: 118 | C58: 7 | D58: 8 | E58: 7 | F58: 21 | G58: 15 | H58: 4 | I58: 6 | J58: 13 | K58: 8 | L58: 13 | M58: 10 | N58: 6
A59: Paraguay | B59: 3 | C59: 0 | D59: 0 | E59: 1 | F59: 0 | G59: 0 | H59: 0 | I59: 0 | J59: 1 | K59: 0 | L59: 1 | M59: 0 | N59: 0
A60: Perú | B60: 134 | C60: 9 | D60: 24 | E60: 10 | F60: 8 | G60: 20 | H60: 9 | I60: 6 | J60: 12 | K60: 10 | L60: 14 | M60: 7 | N60: 5
A61: Polonia | B61: 5 | C61: 0 | D61: 0 | E61: 1 | F61: 1 | G61: 0 | H61: 0 | I61: 0 | J61: 1 | K61: 2 | L61: 0 | M61: 0 | N61: 0
A62: Puerto Rico | B62: 3 | C62: 0 | D62: 0 | E62: 0 | F62: 1 | G62: 0 | H62: 0 | I62: 0 | J62: 0 | K62: 1 | L62: 1 | M62: 0 | N62: 0
A63: Reino Unido | B63: 10 | C63: 10 | D63: 0 | E63: 0 | F63: 0 | G63: 0 | H63: 0 | I63: 0 | J63: 0 | K63: 0 | L63: 0 | M63: 0 | N63: 0
A64: República Dominicana | B64: 182 | C64: 10 | D64: 21 | E64: 22 | F64: 17 | G64: 7 | H64: 14 | I64: 12 | J64: 38 | K64: 5 | L64: 16 | M64: 9 | N64: 11
A65: Rumanía | B65: 4 | C65: 0 | D65: 0 | E65: 1 | F65: 1 | G65: 1 | H65: 0 | I65: 0 | J65: 0 | K65: 0 | L65: 0 | M65: 1 | N65: 0
A66: Rusia | B66: 23 | C66: 1 | D66: 3 | E66: 0 | F66: 3 | G66: 5 | H66: 2 | I66: 2 | J66: 6 | K66: 0 | L66: 0 | M66: 1 | N66: 0
A67: Siria | B67: 1 | C67: 0 | D67: 0 | E67: 0 | F67: 0 | G67: 0 | H67: 0 | I67: 0 | J67: 0 | K67: 0 | L67: 0 | M67: 1 | N67: 0
A68: Sudáfrica | B68: 2 | C68: 0 | D68: 1 | E68: 0 | F68: 0 | G68: 0 | H68: 1 | I68: 0 | J68: 0 | K68: 0 | L68: 0 | M68: 0 | N68: 0
A69: Suiza | B69: 11 | C69: 2 | D69: 1 | E69: 1 | F69: 1 | G69: 1 | H69: 0 | I69: 2 | J69: 0 | K69: 0 | L69: 2 | M69: 1 | N69: 0
A70: Tailandia | B70: 0 | C70: 0 | D70: 0 | E70: 0 | F70: 0 | G70: 0 | H70: 0 | I70: 0 | J70: 0 | K70: 0 | L70: 0 | M70: 0 | N70: 0
A71: Taiwán | B71: 19 | C71: 1 | D71: 0 | E71: 0 | F71: 1 | G71: 0 | H71: 2 | I71: 0 | J71: 9 | K71: 2 | L71: 2 | M71: 0 | N71: 2
A72: Trinidad y Tobago | B72: 1 | C72: 0 | D72: 0 | E72: 0 | F72: 0 | G72: 0 | H72: 0 | I72: 0 | J72: 1 | K72: 0 | L72: 0 | M72: 0 | N72: 0
A73: Ucrania | B73: 4 | C73: 1 | D73: 0 | E73: 0 | F73: 0 | G73: 0 | H73: 0 | I73: 1 | J73: 0 | K73: 1 | L73: 0 | M73: 0 | N73: 1
A74: Uruguay | B74: 5 | C74: 1 | D74: 2 | E74: 2 | F74: 0 | G74: 0 | H74: 0 | I74: 0 | J74: 0 | K74: 0 | L74: 0 | M74: 0 | N74: 0
A75: Yemen | B75: =SUM(C75:N75) -> 1 | C75: 0 | D75: 0 | E75: 0 | F75: 0 | G75: 0 | H75: 0 | I75: 0 | J75: 0 | K75: 1 | L75: 0 | M75: 0 | N75: 0
A76: Venezuela | B76: 136 | C76: 0 | D76: 2 | E76: 8 | F76: 17 | G76: 21 | H76: 11 | I76: 15 | J76: 20 | K76: 3 | L76: 13 | M76: 10 | N76: 16
A79: FUENTE: Sección de Opciones y Naturalizaciones del Tribunal Supremo de Elecciones.

Sheet 19
A1: CUADRO 19
A2: COSTA RICA: INGRESO DE SOLICITUDES DE DETERMINACIÓN DE PATERNIDAD
A3: POR PROVINCIA, SEGÚN MES, AL 31 DE DICIEMBRE 2016
A5: Mes | B5: Total | C5: San José | D5: Alajuela | E5: Cartago | F5: Heredia | G5: Guanacaste | H5: Puntarenas | I5: Limón | J5: Partido Especial
A7: Total | B7: =SUM(B9:B20) -> 5005 | C7: =SUM(C9:C20) -> 1665 | D7: 896 | E7: 366 | F7: 316 | G7: 472 | H7: 494 | I7: 790 | J7: =SUM(J9:J20) -> 6
A9: Enero | B9: =SUM(C9:J9) -> 406 | C9: 156 | D9: 72 | E9: 39 | F9: 20 | G9: 40 | H9: 27 | I9: 52 | J9: 0
A10: Febrero | B10: =SUM(C10:J10) -> 306 | C10: 85 | D10: 52 | E10: 19 | F10: 15 | G10: 35 | H10: 38 | I10: 62 | J10: 0
A11: Marzo | B11: 380 | C11: 137 | D11: 64 | E11: 26 | F11: 24 | G11: 34 | H11: 38 | I11: 57 | J11: 0
A12: Abril | B12: 468 | C12: 176 | D12: 93 | E12: 34 | F12: 23 | G12: 44 | H12: 42 | I12: 56 | J12: 0
A13: Mayo | B13: 666 | C13: 250 | D13: 125 | E13: 36 | F13: 53 | G13: 63 | H13: 71 | I13: 68 | J13: 0
A14: Junio | B14: =SUM(C14:J14) -> 385 | C14: 138 | D14: 54 | E14: 36 | F14: 29 | G14: 27 | H14: 40 | I14: 59 | J14: 2
A15: Julio | B15: 413 | C15: 108 | D15: 67 | E15: 30 | F15: 36 | G15: 38 | H15: 38 | I15: 96 | J15: 0
A16: Agosto | B16: 435 | C16: 155 | D16: 81 | E16: 24 | F16: 32 | G16: 38 | H16: 41 | I16: 63 | J16: 1
A17: Setiembre | B17: 395 | C17: 137 | D17: 67 | E17: 27 | F17: 23 | G17: 32 | H17: 40 | I17: 68 | J17: 1
A18: Octubre | B18: 277 | C18: 102 | D18: 46 | E18: 17 | F18: 15 | G18: 20 | H18: 32 | I18: 45 | J18: 0
A19: Noviembre | B19: 578 | C19: 150 | D19: 115 | E19: 48 | F19: 24 | G19: 72 | H19: 56 | I19: 111 | J19: 2
A20: Diciembre | B20: 296 | C20: 71 | D20: 60 | E20: 30 | F20: 22 | G20: 29 | H20: 31 | I20: 53 | J20: 0
A23: Fuente: Sección de Inscripciones del Tribunal Supremo de Elecciones.

Sheet 20
A2: CUADRO 20
A3: COSTA RICA: INGRESO DE SOLICITUDES DE DETERMINACIÓN DE PATERNIDAD, POR MES
A4: SEGÚN NACIONALIDAD DE LOS PADRES, AL 31 DE DICIEMBRE 2016
A6: NACIONALIDAD | B6: TOTAL | C6: Enero | D6: Febrero | E6: Marzo | F6: Abril | G6: Mayo | H6: Junio | I6: Julio | J6: Agosto | K6: Setiembre | L6: Octubre | M6: Noviembre | N6: Diciembre
A8: TOTAL | B8: =B11+B15+B19+B23+B27+B31 -> 5005 | C8: 406 | D8: 306 | E8: 380 | F8: 468 | G8: 666 | H8: 385 | I8: 413 | J8: 435 | K8: 395 | L8: 277 | M8: 578 | N8: =N11+N15+N19+N23+N27+N31 -> 296
A10: Costa Rica
A11: Presunto padre | B11: =SUM(C11:N11) -> 4044 | C11: 317 | D11: 243 | E11: 281 | F11: 366 | G11: 442 | H11: 336 | I11: 351 | J11: 366 | K11: 338 | L11: 234 | M11: 507 | N11: 263
A12: Madre | B12: =SUM(C12:N12) -> 4222 | C12: 320 | D12: 268 | E12: 326 | F12: 394 | G12: 450 | H12: 347 | I12: 359 | J12: 396 | K12: 346 | L12: 234 | M12: 514 | N12: 268
A14: Nicaragua
A15: Presunto padre | B15: =SUM(C15:N15) -> 919 | C15: 89 | D15: 63 | E15: 99 | F15: 100 | G15: 217 | H15: 41 | I15: 58 | J15: 63 | K15: 52 | L15: 38 | M15: 70 | N15: 29
A16: Madre | B16: =SUM(C16:N16) -> 760 | C16: 86 | D16: 38 | E16: 54 | F16: 74 | G16: 216 | H16: 36 | I16: 52 | J16: 35 | K16: 44 | L16: 36 | M16: 61 | N16: 28
A18: Colombia
A19: Presunto padre | B19: =SUM(C19:N19) -> 20 | C19: 0 | D19: 0 | E19: 0 | F19: 0 | G19: 0 | H19: 6 | I19: 3 | J19: 3 | K19: 4 | L19: 2 | M19: 0 | N19: 2
A20: Madre | B20: =SUM(C20:N20) -> 9 | C20: 0 | D20: 0 | E20: 0 | F20: 0 | G20: 0 | H20: 1 | I20: 0 | J20: 2 | K20: 3 | L20: 3 | M20: 0 | N20: 0
A22: Panamá
A23: Presunto padre | B23: =SUM(C23:N23) -> 2 | C23: 0 | D23: 0 | E23: 0 | F23: 0 | G23: 0 | H23: 0 | I23: 0 | J23: 0 | K23: 0 | L23: 0 | M23: 0 | N23: 2
A24: Madre | B24: =SUM(C24:N24) -> 0 | C24: 0 | D24: 0 | E24: 0 | F24: 0 | G24: 0 | H24: 0 | I24: 0 | J24: 0 | K24: 0 | L24: 0 | M24: 0 | N24: 0
E25: 0
A26: Otros
A27: Presunto padre | B27: =SUM(C27:N27) -> 8 | C27: 0 | D27: 0 | E27: 0 | F27: 0 | G27: 0 | H27: 0 | I27: =1 -> 1 | J27: =0+1+1 -> 2 | K27: =0+1 -> 1 | L27: =2+0+1 -> 3 | M27: =0+1+0 -> 1 | N27: 0
A28: Madre | B28: =SUM(C28:N28) -> 8 | C28: 0 | D28: 0 | E28: 0 | F28: 0 | G28: 0 | H28: 0 | I28: =1 -> 1 | J28: =1+0+0+1 -> 2 | K28: =1+0 -> 1 | L28: =0+1+1 -> 2 | M28: =1+0+1 -> 2 | N28: 0
A30: No Indica
A31: Presunto padre | B31: =SUM(C31:N31) -> 12 | C31: 0 | D31: 0 | E31: 0 | F31: 2 | G31: 7 | H31: 2 | I31: 0 | J31: 1 | K31: 0 | L31: 0 | M31: 0 | N31: 0
A32: Madre | B32: =SUM(C32:N32) -> 6 | C32: 0 | D32: 0 | E32: 0 | F32: 0 | G32: 0 | H32: 1 | I32: 1 | J32: 0 | K32: 1 | L32: 2 | M32: 1 | N32: 0
A35: Fuente: Sección de Inscripciones del Tribunal Supremo de Elecciones.

Sheet 21
A1: CUADRO 21
A2: COSTA RICA: RESULTADO DE PRUEBAS DE ADN PARA
A3: DETERMINAR LA PATERNIDAD, SEGÚN MES
A4: AL 31 DE DICIEMBRE 2016
A6: Mes | B6: Total | D6: Absoluto | I6: Porcentaje
D7: Positivo | F7: Negativo | I7: Positivo | K7: Negativo
A9: Total | B9: =SUM(B11:B22) -> 2629 | D9: =SUM(D11:D22) -> 1905 | E9: =SUM(E11:E22) -> 0 | F9: =SUM(F11:F22) -> 724 | I9: =+D9/B9*100 -> 72.46101179 | K9: =+F9/B9*100 -> 27.53898821
A11: Enero | B11: =SUM(D11:F11) -> 110 | D11: 92 | F11: 18 | I11: =+D11/B11*100 -> 83.63636364 | K11: =+F11/B11*100 -> 16.36363636
A12: Febrero | B12: =SUM(D12:F12) -> 337 | D12: 239 | F12: 98 | I12: =+D12/B12*100 -> 70.91988131 | K12: =+F12/B12*100 -> 29.08011869
A13: Marzo | B13: 115 | D13: 103 | F13: 12 | I13: 89.56521739 | K13: 10.43478261
A14: Abril | B14: 212 | D14: 142 | F14: 70 | I14: 66.98113208 | K14: 33.01886792
A15: Mayo | B15: 259 | D15: 193 | F15: 66 | I15: 74.51737452 | K15: 25.48262548
A16: Junio | B16: 215 | D16: 187 | F16: 28 | I16: 86.97674419 | K16: 13.02325581
A17: Julio | B17: 245 | D17: 115 | F17: 130 | I17: 46.93877551 | K17: 53.06122449
A18: Agosto | B18: 326 | D18: 232 | F18: 94 | I18: 71.16564417 | K18: 28.83435583
A19: Setiembre | B19: 203 | D19: 150 | F19: 53 | I19: 73.89162562 | K19: 26.10837438
A20: Octubre | B20: =SUM(D20:F20) -> 348 | D20: 251 | F20: 97 | I20: =+D20/B20*100 -> 72.12643678 | K20: =+F20/B20*100 -> 27.87356322
A21: Noviembre | B21: =SUM(D21:F21) -> 230 | D21: 175 | F21: 55 | I21: =+D21/B21*100 -> 76.08695652 | K21: =+F21/B21*100 -> 23.91304348
A22: Diciembre | B22: =SUM(D22:F22) -> 29 | D22: 26 | F22: 3 | I22: =+D22/B22*100 -> 89.65517241 | K22: =+F22/B22*100 -> 10.34482759
A25: Fuente: Sección de Inscripciones del Tribunal Supremo de Elecciones.

Sheet 22
A1: CUADRO 22
A2: COSTA RICA: CANTIDAD DE RESOLUCIONES, POR TIPO DE RESOLUCIÓN, SEGÚN MES
A3: AL 31 DE DICIEMBRE 2016
A5: Mes | B5: Total | C5: Tipo de resolución
C6: Electorales | D6: Inscripciones | E6: Municipales | F6: Naturalizaciones | G6: Ocursos, Paternidad y Otros | H6: Procedimientos Administrativos
A8: Total | B8: =SUM(C8:H8) -> 8474 | C8: =SUM(C10:C21) -> 359 | D8: 742 | E8: 147 | F8: 6692 | G8: 59 | H8: 475
A10: Enero | B10: =SUM(C10:H10) -> 856 | C10: 40 | D10: 57 | E10: 7 | F10: 734 | G10: 4 | H10: 14
A11: Febrero | B11: 610 | C11: 66 | D11: 71 | E11: 4 | F11: 451 | G11: 3 | H11: 15
A12: Marzo | B12: 838 | C12: 112 | D12: 17 | E12: 13 | F12: 658 | G12: 9 | H12: 29
A13: Abril | B13: 867 | C13: 10 | D13: 126 | E13: 17 | F13: 662 | G13: 7 | H13: 45
A14: Mayo | B14: 625 | C14: 13 | D14: 148 | E14: 27 | F14: 387 | G14: 12 | H14: 38
A15: Junio | B15: 659 | C15: 15 | D15: 55 | E15: 10 | F15: 543 | G15: 1 | H15: 35
A16: Julio | B16: 493 | C16: 19 | D16: 39 | E16: 5 | F16: 398 | G16: 1 | H16: 31
A17: Agosto | B17: 902 | C17: 16 | D17: 59 | E17: 14 | F17: 722 | G17: 6 | H17: 85
A18: Setiembre | B18: 698 | C18: 13 | D18: 83 | E18: 14 | F18: 559 | G18: 2 | H18: 27
A19: Octubre | B19: 746 | C19: 26 | D19: 48 | E19: 10 | F19: 608 | G19: =1+4 -> 5 | H19: =46+3 -> 49
A20: Noviembre | B20: 645 | C20: 10 | D20: 24 | E20: 13 | F20: 522 | G20: =1+7 -> 8 | H20: =66+2 -> 68
A21: Diciembre | B21: 535 | C21: 19 | D21: 15 | E21: 13 | F21: 448 | G21: =1+0 -> 1 | H21: =38+1 -> 39
A24: Fuente: Secretaría del Tribunal Supremo de Elecciones.

Sheet 23
A2: CUADRO 23
A3: COSTA RICA: DONACIONES EN EFECTIVO REPORTADAS ANTE EL TRIBUNAL SUPREMO DE ELECCIONES
A4: SEGÚN PARTIDO POLÍTICO 1/
A5: - Cifras en colones, al 31 de diciembre de 2016 -
A6: PARTIDO POLÍTICO | B6: CICLO MUNICIPAL2/ | C6: CICLO PRESIDENCIAL | D6: ENERO A DICIEMBRE, 2016
C7: PERIODO NO ELECTORAL 2016-2017 3/
A9: TOTAL | B9: =SUM(B11:B41) -> 1022179225 | C9: =SUM(C11:C41) -> 109874859.4 | D9: =SUM(D11:D41) -> 316463418.5
A11: ACCESIBILIDAD SIN EXCLUSIÓN | B11: 0 | C11: 110000 | D11: 110000
A12: ACCIÓN CIUDADANA | B12: 84738962.61 | C12: 15411373.61 | D12: 29707103.22
A13: ACUERDO DE ALIANZA DE QUEPOS | B13: 660000 | C13: 0 | D13: 0
A14: ALIANZA DEMOCRATA CRISTIANA | B14: 8586284 | C14: 0 | D14: 7256080
A15: ALIANZA PATRIÓTICA | B15: 2000000 | C15: 270000 | D15: 425000
A16: ALIANZA POR SAN JOSÉ | B16: 72363000 | C16: 1240000 | D16: 29540000
A17: ALIANZA SOCIAL POR LA UNIÓN | B17: 200000 | C17: 0 | D17: 200000
A18: AUTÉNTICO LIMONENSE | B18: 200000 | C18: 0 | D18: 0
A19: AVANCE MONTES DE OCA | B19: 3350000 | C19: 189340 | D19: 1597340
A20: BARVA UNIDA | B20: 307000 | C20: 0 | D20: 307000
A21: COALICIÓN ALIANZA POR BELÉN | B21: 694500 | C21: 0 | D21: 0
A22: COALICIÓN GENTE MONTES DE OCA | B22: 6908475 | C22: 0 | D22: 4742270
A23: COALICIÓN UNIDOS POR GUATUSO | B23: 356000 | C23: 0 | D23: 296000
A24: CURRIDABAT SIGLO XXI | B24: 18315116 | C24: 2303773 | D24: 16656789
A25: DEL SOL | B25: 12673150 | C25: 0 | D25: 7639150
A26: FRENTE AMPLIO | B26: 177717740 | C26: 41446563.9 | D26: 64509013.9
A27: FUERZA DEMOCRÁTICA DESAMPARADEÑA | B27: 1006720 | C27: 0 | D27: 181000
A28: GARABITO ECOLÓGICO | B28: 860000 | C28: 0 | D28: 860000
A29: INDEPENDIENTE ESCAZUCEÑO | B29: 1711000 | C29: 0 | D29: 761000
A30: LIBERACIÓN NACIONAL | B30: 427041456.8 | C30: 20142695.86 | D30: 62716334.86
A31: MOVIMIENTO AVANCE SANTO DOMINGO | B31: 4988438.52 | C31: 1004000 | D31: 2032840
A32: MOVIMIENTO LIBERTARIO | B32: 54751579.55 | C32: 1321500 | D32: 21938776.5
A33: NUEVA GENERACIÓN | B33: 38274824 | C33: 2177346.05 | D33: 12733554.05
A34: PARRITA INDEPENDIENTE | B34: 670000 | C34: 0 | D34: 20000
A35: RENOVACIÓN COSTARRICENSE | B35: 1584000 | C35: 2595035 | D35: 2820035
A36: RENOVEMOS ALAJUELA | B36: 2710000 | C36: 2757982 | D36: 2937982
A37: REPUBLICANO SOCIAL CRISTIANO | B37: 33097500 | C37: 8125250 | D37: 12755250
A38: RESTAURACIÓN NACIONAL | B38: 9448000 | C38: 0 | D38: 0
A39: TODO POR FLORES | B39: 2033000 | C39: 0 | D39: 275000
A40: UNIDAD SOCIAL CRISTIANA | B40: 32177578.34 | C40: 10780000 | D40: 19057000
A41: YUNTA PROGRESISTA ESCAZUCEÑA | B41: 22754900 | C41: 0 | D41: 14388900
A43: Notas:
A44: 1/ El detalle de cada contribuyente se puede consultar en http://www.tse.go.cr/contribuciones_partidos.htm
A45: 2/ El Ciclo Municipal abarca el periodo comprendido entre el 20 de marzo de 2014 y el 23 de marzo de 2016.
A46: 3/ El Periodo no Electoral del Ciclo Presidencial comprende del 24 de marzo de 2016 al 31 de diciembre de 2016.
A48: Fuente: Reportes de contribuciones remitidos periódicamente por los partidos políticos al Departamento de Financiamiento de Partidos Políticos.
